Workbook

Sheet EXPLANATION
B4: DISCLAIMER
B6: - GTS only provide's this file as service, no rights whatsoever may be derived from these calculations, shipper' bookings and GTS Invoices are leading.
B7: - Tariffs used in the calculation are the total prices for 2027
B8: - Total price is the sum of the all-in transmission tariff and the neutrality charge, whereby:
B9: - transmission tariffs for 2027 are established by the Dutch regulator ACM (26 May 2026)
B10: - neutrality charges for 2027 are established by GTS in accordance with the calculation methodology as stated in de Transmission Code Gas TSO
C11: Tariff decision 2027 › Gasunie Transport Services
B12: - Multipliers and seasonal factors used as established by the Duth regulator ACM in the NC TAR decision (25 April 2024):
C13: https://www.acm.nl/nl/publicaties/codebesluit-ter-uitvoering-van-nc-tar | I13: (Dutch)
B15: LEGEND
B17: GREEN | E17: Input cells to be filled out by user
B18: BLUE | E18: Fixed input data
B19: YELLOW | E19: Calculated value
B20: ORANGE | E20: Calculated resulting value
B21: BLACK | E21: Information sheets (this explanation sheet and sheets with calculation of the total prices)
B23: EXPLANATION CALCULATION TOOL PERIOD BOOKING
B25: Introduction
B26: This tool converts a flat (non-profiled) booking for a booking period of less than one year into an optimum combination of yearly, quarterly, monthly and daily capacity products. The tool determines the cheapest combination in line with (a) - (c) of the 'optimisation paragraphs' of described in article 2.1.2. of the Transmission Code Gas TSO (quote):
B30: “If a recognised programme-responsible party or connected parties with exit capacity at domestic entry and exit points contract entry or exit capacity at an entry or exit point on the same day in any given combination of quarterly, monthly, and daily capacity products, the network operator of the national gas transmission grid shall, at the request of the recognised programme-responsible party or connected parties with exit capacity, do the following for each tranche of the same quantity of contracted entry or exit capacity:
B35: a. | C35: If the payable price for the combination of contracted quarterly, monthly, and daily capacity products is greater than the price of a yearly capacity product, then the yearly capacity product shall be contracted for the tranche in question, provided the required capacity is available at the relevant entry or exit point;
B39: b. | C39: If the payable price for the combination of contracted monthly and daily capacity products in one gas quarter is greater than the price of the relevant quarterly capacity product, then the relevant quarterly capacity product shall be contracted, provided the required capacity is available at the relevant entry or exit point; or
B43: c. | C43: If the payable price for the combination of contracted daily capacity products in one month is greater than the payable price for the monthly capacity product, then the relevant monthly capacity product shall be contracted, provided the required capacity is available at the relevant entry or exit point.”
B47: The main steps in the optimisation are
B49: * | C49: the period booking is converted into non-optimised subsequent capacity products;
B51: * | C51: if the payable price for the combination of daily capacity products in one month is greater than the payable price for the monthly capacity product, then the relevant monthly capacity products applies;
B54: * | C54: if the payable price for the combination of monthly and daily capacity products in one gas quarter is greater than the price of the relevant quarterly capacity products, then the relevant quarterly capacity product applies;
B57: * | C57: if the payable price for the combination of quarterly, monthly and daily capacity products is greater than the price for a yearly capacity product, then the relevant yearly capacity product applies. When the by the shipper chosen period leads to less than 12 consecutive months in the yearly booking, shipper is requested to adjust the start or end date creating 12 consecutive months in the yearly booking.
B61: Output
B62: For the period of shipper’s choosing the resulting capacity products are shown including the corresponding estimated monthly invoice (based on 2027 total price).
B65: Disclaimer
B66: This calculation tool advises shippers the cheapest combination of capacity products, based on the given input. Shippers obviously remain responsible for (timely) contracting the right (combination of) capacity products themselves. No rights or whatsoever can be derived from this calculation tool.

Sheet Period booking
B4: CALCULATION TOOL FOR OPTIMISATION OF PERIOD BOOKINGS INTO (Y, Q, M, DA) FIRM CAPACITY PRODUCTS
B6: Please fill in the appropriate values in the GREEN fields and find the optimalisation results below
B8: Start date | C8: =IF(OR(ISERROR(DAY($D$8)),ISERROR(DAY($D$9))),1,IF(OR($D$9<$D$8,$D$9>$D$8+366,$D$11<0),1,0)) -> 0 | D8: 2027-03-01 | E8: =IF(OR(ISERROR(DAY($D$8)),ISERROR(DAY($D$9))),"WARNING: calculation not reliable due to incorrect start or end date; please correct!",IF(D9<D8,"WARNING: calculation not reliable due to incorrect start and end date (start date NOT before end date); please correct!",IF(D9>D8+366," WARNING: calculation not reliable due to incorrect start and end date (period > 1 year), please correct!",""))) -> 
B9: End date (including) | D9: 2027-07-01 | E9: =IF(Optimisation!$T$53=11,"REMARK: for this period a yearly booking is cheaper; please add 12th month to period for monthly cost estimate!",IF(Optimisation!$T$53=10,"REMARK: for this period a yearly booking is cheaper; please add 11th and 12th month to period for monthly cost estimate!",IF(Optimisation!$T$53=9,"REMARK: for this period a yearly booking is cheaper; please add 10th, 11th and 12th month to period for monthly cost estimate!",""))) -> 
B10: Postage stamp point | D10: Exit non-storage | E10: For all dates/periods, the prices used in the calculation tool are the total prices 2027 (see sheet 'Explanation')
B11: Quantity | C11: kWh/h | D11: 500,000 | E11: =IF(D11<0,"WARNING: quantity is negative, please correct to positive value!","") -> 
B13: PERIOD BOOKING CONVERTED INTO OPTIMISED COMBINATION OF Y, Q, M, DA CAPACITY PRODUCTS
B15: Month | C15: Year | D15: Yearly capacity booking | E15: Quarterly capacity booking | F15: Monthly capacity booking | G15: Daily capacity booking | H15: Cost/month based on 2027 tariffs
D16: kWh/h | E16: kWh/h | F16: kWh/h | G16: kWh/h | H16: EUR
G18: Total cost: | H18: =SUM(H19:H42) -> € 1,019,090
B19: January | C19: =IF($C$8=1,"",YEAR(D$8)) -> 2027 | D19: =IF($C$8=1,"",Optimisation!Y29) ->  | E19: =IF($C$8=1,"",Optimisation!Z29) ->  | F19: =IF($C$8=1,"",Optimisation!AA29) ->  | G19: =IF($C$8=1,"",Optimisation!AB29) ->  | H19: =IF($C$8=1,"",Optimisation!X29) -> € 0
B20: February | C20: =IF($C$8=1,"",YEAR(D$8)) -> 2027 | D20: =IF($C$8=1,"",Optimisation!Y30) ->  | E20: =IF($C$8=1,"",Optimisation!Z30) ->  | F20: =IF($C$8=1,"",Optimisation!AA30) ->  | G20: =IF($C$8=1,"",Optimisation!AB30) ->  | H20: =IF($C$8=1,"",Optimisation!X30) -> € 0
B21: March | C21: 2027 | D21: =IF($C$8=1,"",Optimisation!Y31) ->  | E21: =IF($C$8=1,"",Optimisation!Z31) ->  | F21: =IF($C$8=1,"",Optimisation!AA31) -> M3 | G21: =IF($C$8=1,"",Optimisation!AB31) ->  | H21: =IF($C$8=1,"",Optimisation!X31) -> € 388,979
B22: April | C22: 2027 | D22: =IF($C$8=1,"",Optimisation!Y32) ->  | E22: =IF($C$8=1,"",Optimisation!Z32) -> Q2 | F22: =IF($C$8=1,"",Optimisation!AA32) ->  | G22: =IF($C$8=1,"",Optimisation!AB32) ->  | H22: =IF($C$8=1,"",Optimisation!X32) -> € 205,117
B23: May | C23: 2027 | D23: =IF($C$8=1,"",Optimisation!Y33) ->  | E23: =IF($C$8=1,"",Optimisation!Z33) -> Q2 | F23: =IF($C$8=1,"",Optimisation!AA33) ->  | G23: =IF($C$8=1,"",Optimisation!AB33) ->  | H23: =IF($C$8=1,"",Optimisation!X33) -> € 211,954
B24: June | C24: 2027 | D24: =IF($C$8=1,"",Optimisation!Y34) ->  | E24: =IF($C$8=1,"",Optimisation!Z34) -> Q2 | F24: =IF($C$8=1,"",Optimisation!AA34) ->  | G24: =IF($C$8=1,"",Optimisation!AB34) ->  | H24: =IF($C$8=1,"",Optimisation!X34) -> € 205,117
B25: July | C25: 2027 | D25: =IF($C$8=1,"",Optimisation!Y35) ->  | E25: =IF($C$8=1,"",Optimisation!Z35) ->  | F25: =IF($C$8=1,"",Optimisation!AA35) ->  | G25: =IF($C$8=1,"",Optimisation!AB35) -> 1 | H25: =IF($C$8=1,"",Optimisation!X35) -> € 7,924
B26: August | C26: 2027 | D26: =IF($C$8=1,"",Optimisation!Y36) ->  | E26: =IF($C$8=1,"",Optimisation!Z36) ->  | F26: =IF($C$8=1,"",Optimisation!AA36) ->  | G26: =IF($C$8=1,"",Optimisation!AB36) ->  | H26: =IF($C$8=1,"",Optimisation!X36) -> € 0
B27: September | C27: 2027 | D27: =IF($C$8=1,"",Optimisation!Y37) ->  | E27: =IF($C$8=1,"",Optimisation!Z37) ->  | F27: =IF($C$8=1,"",Optimisation!AA37) ->  | G27: =IF($C$8=1,"",Optimisation!AB37) ->  | H27: =IF($C$8=1,"",Optimisation!X37) -> € 0
B28: October | C28: 2027 | D28: =IF($C$8=1,"",Optimisation!Y38) ->  | E28: =IF($C$8=1,"",Optimisation!Z38) ->  | F28: =IF($C$8=1,"",Optimisation!AA38) ->  | G28: =IF($C$8=1,"",Optimisation!AB38) ->  | H28: =IF($C$8=1,"",Optimisation!X38) -> € 0
B29: November | C29: 2027 | D29: =IF($C$8=1,"",Optimisation!Y39) ->  | E29: =IF($C$8=1,"",Optimisation!Z39) ->  | F29: =IF($C$8=1,"",Optimisation!AA39) ->  | G29: =IF($C$8=1,"",Optimisation!AB39) ->  | H29: =IF($C$8=1,"",Optimisation!X39) -> € 0
B30: December | C30: 2027 | D30: =IF($C$8=1,"",Optimisation!Y40) ->  | E30: =IF($C$8=1,"",Optimisation!Z40) ->  | F30: =IF($C$8=1,"",Optimisation!AA40) ->  | G30: =IF($C$8=1,"",Optimisation!AB40) ->  | H30: =IF($C$8=1,"",Optimisation!X40) -> € 0
B31: January | C31: =IF($C$8=1,"",YEAR(D$8)+1) -> 2028 | D31: =IF($C$8=1,"",Optimisation!Y41) ->  | E31: =IF($C$8=1,"",Optimisation!Z41) ->  | F31: =IF($C$8=1,"",Optimisation!AA41) ->  | G31: =IF($C$8=1,"",Optimisation!AB41) ->  | H31: =IF($C$8=1,"",Optimisation!X41) -> € 0
B32: February | C32: =IF($C$8=1,"",YEAR(D$8)+1) -> 2028 | D32: =IF($C$8=1,"",Optimisation!Y42) ->  | E32: =IF($C$8=1,"",Optimisation!Z42) ->  | F32: =IF($C$8=1,"",Optimisation!AA42) ->  | G32: =IF($C$8=1,"",Optimisation!AB42) ->  | H32: =IF($C$8=1,"",Optimisation!X42) -> € 0
B33: March | C33: 2028 | D33: =IF($C$8=1,"",Optimisation!Y43) ->  | E33: =IF($C$8=1,"",Optimisation!Z43) ->  | F33: =IF($C$8=1,"",Optimisation!AA43) ->  | G33: =IF($C$8=1,"",Optimisation!AB43) ->  | H33: =IF($C$8=1,"",Optimisation!X43) -> € 0
B34: April | C34: 2028 | D34: =IF($C$8=1,"",Optimisation!Y44) ->  | E34: =IF($C$8=1,"",Optimisation!Z44) ->  | F34: =IF($C$8=1,"",Optimisation!AA44) ->  | G34: =IF($C$8=1,"",Optimisation!AB44) ->  | H34: =IF($C$8=1,"",Optimisation!X44) -> € 0
B35: May | C35: 2028 | D35: =IF($C$8=1,"",Optimisation!Y45) ->  | E35: =IF($C$8=1,"",Optimisation!Z45) ->  | F35: =IF($C$8=1,"",Optimisation!AA45) ->  | G35: =IF($C$8=1,"",Optimisation!AB45) ->  | H35: =IF($C$8=1,"",Optimisation!X45) -> € 0
B36: June | C36: 2028 | D36: =IF($C$8=1,"",Optimisation!Y46) ->  | E36: =IF($C$8=1,"",Optimisation!Z46) ->  | F36: =IF($C$8=1,"",Optimisation!AA46) ->  | G36: =IF($C$8=1,"",Optimisation!AB46) ->  | H36: =IF($C$8=1,"",Optimisation!X46) -> € 0
B37: July | C37: 2028 | D37: =IF($C$8=1,"",Optimisation!Y47) ->  | E37: =IF($C$8=1,"",Optimisation!Z47) ->  | F37: =IF($C$8=1,"",Optimisation!AA47) ->  | G37: =IF($C$8=1,"",Optimisation!AB47) ->  | H37: =IF($C$8=1,"",Optimisation!X47) -> € 0
B38: August | C38: 2028 | D38: =IF($C$8=1,"",Optimisation!Y48) ->  | E38: =IF($C$8=1,"",Optimisation!Z48) ->  | F38: =IF($C$8=1,"",Optimisation!AA48) ->  | G38: =IF($C$8=1,"",Optimisation!AB48) ->  | H38: =IF($C$8=1,"",Optimisation!X48) -> € 0
B39: September | C39: 2028 | D39: =IF($C$8=1,"",Optimisation!Y49) ->  | E39: =IF($C$8=1,"",Optimisation!Z49) ->  | F39: =IF($C$8=1,"",Optimisation!AA49) ->  | G39: =IF($C$8=1,"",Optimisation!AB49) ->  | H39: =IF($C$8=1,"",Optimisation!X49) -> € 0
B40: October | C40: 2028 | D40: =IF($C$8=1,"",Optimisation!Y50) ->  | E40: =IF($C$8=1,"",Optimisation!Z50) ->  | F40: =IF($C$8=1,"",Optimisation!AA50) ->  | G40: =IF($C$8=1,"",Optimisation!AB50) ->  | H40: =IF($C$8=1,"",Optimisation!X50) -> € 0
B41: November | C41: 2028 | D41: =IF($C$8=1,"",Optimisation!Y51) ->  | E41: =IF($C$8=1,"",Optimisation!Z51) ->  | F41: =IF($C$8=1,"",Optimisation!AA51) ->  | G41: =IF($C$8=1,"",Optimisation!AB51) ->  | H41: =IF($C$8=1,"",Optimisation!X51) -> € 0
B42: December | C42: 2028 | D42: =IF($C$8=1,"",Optimisation!Y52) ->  | E42: =IF($C$8=1,"",Optimisation!Z52) ->  | F42: =IF($C$8=1,"",Optimisation!AA52) ->  | G42: =IF($C$8=1,"",Optimisation!AB52) ->  | H42: =IF($C$8=1,"",Optimisation!X52) -> € 0

Sheet Total prices
B4: TOTAL PRICES 2027 FIRM CAPACITY (which is sum of the all-in transmission tariffs and the neutrality charges)
B8: Total prices FIRM capacity for interconnection points | C8: ENTRY REGULAR | I8: ENTRY STORAGE | O8: ENTRY LNG
B9: Payable total prices FIRM capacity for domestic points
C10: Year | D10: Quarter | E10: Month | F10: Day | G10: Within-day | I10: Year | J10: Quarter | K10: Month | L10: Day | M10: Within-day | O10: Year | P10: Quarter | Q10: Month | R10: Day | S10: Within-day
C11: EUR/kWh/h/Y | D11: EUR/kWh/h/Q | E11: EUR/kWh/h/M | F11: EUR/kWh/h/DA | G11: EUR/kWh/h/WID | I11: EUR/kWh/h/Y | J11: EUR/kWh/h/Q | K11: EUR/kWh/h/M | L11: EUR/kWh/h/DA | M11: EUR/kWh/h/WID | O11: EUR/kWh/h/Y | P11: EUR/kWh/h/Q | Q11: EUR/kWh/h/M | R11: EUR/kWh/h/DA | S11: EUR/kWh/h/WID
B13: January | C13: ='Transmission tariffs'!C13+'Neutrality charge'!C13 -> 5.47253664 | D13: ='Transmission tariffs'!D13+'Neutrality charge'!D13 -> 2.49974978 | E13: ='Transmission tariffs'!E13+'Neutrality charge'!E13 -> 1.19567429 | F13: ='Transmission tariffs'!F13+'Neutrality charge'!F13 -> 0.04652031 | G13: ='Transmission tariffs'!G13+'Neutrality charge'!G13 -> 0.00193835 | I13: ='Transmission tariffs'!I13+'Neutrality charge'!I13 -> 1.36813417 | J13: ='Transmission tariffs'!J13+'Neutrality charge'!J13 -> 0.62493745 | K13: ='Transmission tariffs'!K13+'Neutrality charge'!K13 -> 0.29891858 | L13: ='Transmission tariffs'!L13+'Neutrality charge'!L13 -> 0.01163008 | M13: ='Transmission tariffs'!M13+'Neutrality charge'!M13 -> 0.00048459 | O13: ='Transmission tariffs'!O13+'Neutrality charge'!O13 -> 5.47253664 | P13: ='Transmission tariffs'!P13+'Neutrality charge'!P13 -> 2.49974978 | Q13: ='Transmission tariffs'!Q13+'Neutrality charge'!Q13 -> 1.19567429 | R13: ='Transmission tariffs'!R13+'Neutrality charge'!R13 -> 0.04652031 | S13: ='Transmission tariffs'!S13+'Neutrality charge'!S13 -> 0.00193835
B14: February | E14: ='Transmission tariffs'!E14+'Neutrality charge'!E14 -> 0.96535546 | F14: ='Transmission tariffs'!F14+'Neutrality charge'!F14 -> 0.04158753 | G14: ='Transmission tariffs'!G14+'Neutrality charge'!G14 -> 0.00173281 | K14: ='Transmission tariffs'!K14+'Neutrality charge'!K14 -> 0.24133887 | L14: ='Transmission tariffs'!L14+'Neutrality charge'!L14 -> 0.01039688 | M14: ='Transmission tariffs'!M14+'Neutrality charge'!M14 -> 0.00043320 | Q14: ='Transmission tariffs'!Q14+'Neutrality charge'!Q14 -> 0.96535546 | R14: ='Transmission tariffs'!R14+'Neutrality charge'!R14 -> 0.04158753 | S14: ='Transmission tariffs'!S14+'Neutrality charge'!S14 -> 0.00173281
B15: March | E15: ='Transmission tariffs'!E15+'Neutrality charge'!E15 -> 0.83592623 | F15: ='Transmission tariffs'!F15+'Neutrality charge'!F15 -> 0.03250911 | G15: ='Transmission tariffs'!G15+'Neutrality charge'!G15 -> 0.00135454 | K15: ='Transmission tariffs'!K15+'Neutrality charge'!K15 -> 0.20898155 | L15: ='Transmission tariffs'!L15+'Neutrality charge'!L15 -> 0.00812728 | M15: ='Transmission tariffs'!M15+'Neutrality charge'!M15 -> 0.00033863 | Q15: ='Transmission tariffs'!Q15+'Neutrality charge'!Q15 -> 0.83592623 | R15: ='Transmission tariffs'!R15+'Neutrality charge'!R15 -> 0.03250911 | S15: ='Transmission tariffs'!S15+'Neutrality charge'!S15 -> 0.00135454
B16: April | D16: ='Transmission tariffs'!D16+'Neutrality charge'!D16 -> 1.33709813 | E16: ='Transmission tariffs'!E16+'Neutrality charge'!E16 -> 0.60317850 | F16: ='Transmission tariffs'!F16+'Neutrality charge'!F16 -> 0.02424408 | G16: ='Transmission tariffs'!G16+'Neutrality charge'!G16 -> 0.00101017 | J16: ='Transmission tariffs'!J16+'Neutrality charge'!J16 -> 0.33427453 | K16: ='Transmission tariffs'!K16+'Neutrality charge'!K16 -> 0.15079462 | L16: ='Transmission tariffs'!L16+'Neutrality charge'!L16 -> 0.00606103 | M16: ='Transmission tariffs'!M16+'Neutrality charge'!M16 -> 0.00025255 | P16: ='Transmission tariffs'!P16+'Neutrality charge'!P16 -> 1.33709813 | Q16: ='Transmission tariffs'!Q16+'Neutrality charge'!Q16 -> 0.60317850 | R16: ='Transmission tariffs'!R16+'Neutrality charge'!R16 -> 0.02424408 | S16: ='Transmission tariffs'!S16+'Neutrality charge'!S16 -> 0.00101017
B17: May | E17: ='Transmission tariffs'!E17+'Neutrality charge'!E17 -> 0.55217145 | F17: ='Transmission tariffs'!F17+'Neutrality charge'!F17 -> 0.02148908 | G17: ='Transmission tariffs'!G17+'Neutrality charge'!G17 -> 0.00089538 | K17: ='Transmission tariffs'!K17+'Neutrality charge'!K17 -> 0.13804287 | L17: ='Transmission tariffs'!L17+'Neutrality charge'!L17 -> 0.00537226 | M17: ='Transmission tariffs'!M17+'Neutrality charge'!M17 -> 0.00022384 | Q17: ='Transmission tariffs'!Q17+'Neutrality charge'!Q17 -> 0.55217145 | R17: ='Transmission tariffs'!R17+'Neutrality charge'!R17 -> 0.02148908 | S17: ='Transmission tariffs'!S17+'Neutrality charge'!S17 -> 0.00089538
B18: June | E18: ='Transmission tariffs'!E18+'Neutrality charge'!E18 -> 0.44867304 | F18: ='Transmission tariffs'!F18+'Neutrality charge'!F18 -> 0.01805187 | G18: ='Transmission tariffs'!G18+'Neutrality charge'!G18 -> 0.00075216 | K18: ='Transmission tariffs'!K18+'Neutrality charge'!K18 -> 0.11216826 | L18: ='Transmission tariffs'!L18+'Neutrality charge'!L18 -> 0.00451296 | M18: ='Transmission tariffs'!M18+'Neutrality charge'!M18 -> 0.00018804 | Q18: ='Transmission tariffs'!Q18+'Neutrality charge'!Q18 -> 0.44867304 | R18: ='Transmission tariffs'!R18+'Neutrality charge'!R18 -> 0.01805187 | S18: ='Transmission tariffs'!S18+'Neutrality charge'!S18 -> 0.00075216
B19: July | D19: ='Transmission tariffs'!D19+'Neutrality charge'!D19 -> 1.08453681 | E19: ='Transmission tariffs'!E19+'Neutrality charge'!E19 -> 0.43783291 | F19: ='Transmission tariffs'!F19+'Neutrality charge'!F19 -> 0.01702858 | G19: ='Transmission tariffs'!G19+'Neutrality charge'!G19 -> 0.00070952 | J19: ='Transmission tariffs'!J19+'Neutrality charge'!J19 -> 0.27113420 | K19: ='Transmission tariffs'!K19+'Neutrality charge'!K19 -> 0.10945823 | L19: ='Transmission tariffs'!L19+'Neutrality charge'!L19 -> 0.00425715 | M19: ='Transmission tariffs'!M19+'Neutrality charge'!M19 -> 0.00017738 | P19: ='Transmission tariffs'!P19+'Neutrality charge'!P19 -> 1.08453681 | Q19: ='Transmission tariffs'!Q19+'Neutrality charge'!Q19 -> 0.43783291 | R19: ='Transmission tariffs'!R19+'Neutrality charge'!R19 -> 0.01702858 | S19: ='Transmission tariffs'!S19+'Neutrality charge'!S19 -> 0.00070952
B20: August | E20: ='Transmission tariffs'!E20+'Neutrality charge'!E20 -> 0.41622015 | F20: ='Transmission tariffs'!F20+'Neutrality charge'!F20 -> 0.01621520 | G20: ='Transmission tariffs'!G20+'Neutrality charge'!G20 -> 0.00067564 | K20: ='Transmission tariffs'!K20+'Neutrality charge'!K20 -> 0.10405504 | L20: ='Transmission tariffs'!L20+'Neutrality charge'!L20 -> 0.00405380 | M20: ='Transmission tariffs'!M20+'Neutrality charge'!M20 -> 0.00016891 | Q20: ='Transmission tariffs'!Q20+'Neutrality charge'!Q20 -> 0.41622015 | R20: ='Transmission tariffs'!R20+'Neutrality charge'!R20 -> 0.01621520 | S20: ='Transmission tariffs'!S20+'Neutrality charge'!S20 -> 0.00067564
B21: September | E21: ='Transmission tariffs'!E21+'Neutrality charge'!E21 -> 0.44732365 | F21: ='Transmission tariffs'!F21+'Neutrality charge'!F21 -> 0.01799940 | G21: ='Transmission tariffs'!G21+'Neutrality charge'!G21 -> 0.00074997 | K21: ='Transmission tariffs'!K21+'Neutrality charge'!K21 -> 0.11183091 | L21: ='Transmission tariffs'!L21+'Neutrality charge'!L21 -> 0.00449985 | M21: ='Transmission tariffs'!M21+'Neutrality charge'!M21 -> 0.00018750 | Q21: ='Transmission tariffs'!Q21+'Neutrality charge'!Q21 -> 0.44732365 | R21: ='Transmission tariffs'!R21+'Neutrality charge'!R21 -> 0.01799940 | S21: ='Transmission tariffs'!S21+'Neutrality charge'!S21 -> 0.00074997
B22: October | D22: ='Transmission tariffs'!D22+'Neutrality charge'!D22 -> 1.90526738 | E22: ='Transmission tariffs'!E22+'Neutrality charge'!E22 -> 0.53055868 | F22: ='Transmission tariffs'!F22+'Neutrality charge'!F22 -> 0.02064946 | G22: ='Transmission tariffs'!G22+'Neutrality charge'!G22 -> 0.00086039 | J22: ='Transmission tariffs'!J22+'Neutrality charge'!J22 -> 0.47631685 | K22: ='Transmission tariffs'!K22+'Neutrality charge'!K22 -> 0.13263967 | L22: ='Transmission tariffs'!L22+'Neutrality charge'!L22 -> 0.00516237 | M22: ='Transmission tariffs'!M22+'Neutrality charge'!M22 -> 0.00021509 | P22: ='Transmission tariffs'!P22+'Neutrality charge'!P22 -> 1.90526738 | Q22: ='Transmission tariffs'!Q22+'Neutrality charge'!Q22 -> 0.53055868 | R22: ='Transmission tariffs'!R22+'Neutrality charge'!R22 -> 0.02064946 | S22: ='Transmission tariffs'!S22+'Neutrality charge'!S22 -> 0.00086039
B23: November | E23: ='Transmission tariffs'!E23+'Neutrality charge'!E23 -> 0.76240682 | F23: ='Transmission tariffs'!F23+'Neutrality charge'!F23 -> 0.03064621 | G23: ='Transmission tariffs'!G23+'Neutrality charge'!G23 -> 0.00127692 | K23: ='Transmission tariffs'!K23+'Neutrality charge'!K23 -> 0.19060171 | L23: ='Transmission tariffs'!L23+'Neutrality charge'!L23 -> 0.00766155 | M23: ='Transmission tariffs'!M23+'Neutrality charge'!M23 -> 0.00031923 | Q23: ='Transmission tariffs'!Q23+'Neutrality charge'!Q23 -> 0.76240682 | R23: ='Transmission tariffs'!R23+'Neutrality charge'!R23 -> 0.03064621 | S23: ='Transmission tariffs'!S23+'Neutrality charge'!S23 -> 0.00127692
B24: December | E24: ='Transmission tariffs'!E24+'Neutrality charge'!E24 -> 0.99279312 | F24: ='Transmission tariffs'!F24+'Neutrality charge'!F24 -> 0.03862262 | G24: ='Transmission tariffs'!G24+'Neutrality charge'!G24 -> 0.00160927 | K24: ='Transmission tariffs'!K24+'Neutrality charge'!K24 -> 0.24819828 | L24: ='Transmission tariffs'!L24+'Neutrality charge'!L24 -> 0.00965565 | M24: ='Transmission tariffs'!M24+'Neutrality charge'!M24 -> 0.00040232 | Q24: ='Transmission tariffs'!Q24+'Neutrality charge'!Q24 -> 0.99279312 | R24: ='Transmission tariffs'!R24+'Neutrality charge'!R24 -> 0.03862262 | S24: ='Transmission tariffs'!S24+'Neutrality charge'!S24 -> 0.00160927
B26: Total prices FIRM capacity for interconnection points | C26: EXIT NON-STORAGE | I26: EXIT STORAGE
B27: Payable total prices FIRM capacity for domestic points
C28: Year | D28: Quarter | E28: Month | F28: Day | G28: Within-day | I28: Year | J28: Quarter | K28: Month | L28: Day | M28: Within-day
C29: EUR/kWh/h/Y | D29: EUR/kWh/h/Q | E29: EUR/kWh/h/M | F29: EUR/kWh/h/DA | G29: EUR/kWh/h/WID | I29: EUR/kWh/h/Y | J29: EUR/kWh/h/Q | K29: EUR/kWh/h/M | L29: EUR/kWh/h/DA | M29: EUR/kWh/h/WID
B31: January | C31: ='Transmission tariffs'!C31+'Neutrality charge'!C31 -> 5.09303642 | D31: ='Transmission tariffs'!D31+'Neutrality charge'!D31 -> 2.32640137 | E31: ='Transmission tariffs'!E31+'Neutrality charge'!E31 -> 1.11275869 | F31: ='Transmission tariffs'!F31+'Neutrality charge'!F31 -> 0.04329430 | G31: ='Transmission tariffs'!G31+'Neutrality charge'!G31 -> 0.00180393 | I31: ='Transmission tariffs'!I31+'Neutrality charge'!I31 -> 1.27325911 | J31: ='Transmission tariffs'!J31+'Neutrality charge'!J31 -> 0.58160034 | K31: ='Transmission tariffs'!K31+'Neutrality charge'!K31 -> 0.27818967 | L31: ='Transmission tariffs'!L31+'Neutrality charge'!L31 -> 0.01082358 | M31: ='Transmission tariffs'!M31+'Neutrality charge'!M31 -> 0.00045098
B32: February | E32: ='Transmission tariffs'!E32+'Neutrality charge'!E32 -> 0.89841163 | F32: ='Transmission tariffs'!F32+'Neutrality charge'!F32 -> 0.03870358 | G32: ='Transmission tariffs'!G32+'Neutrality charge'!G32 -> 0.00161265 | K32: ='Transmission tariffs'!K32+'Neutrality charge'!K32 -> 0.22460291 | L32: ='Transmission tariffs'!L32+'Neutrality charge'!L32 -> 0.00967590 | M32: ='Transmission tariffs'!M32+'Neutrality charge'!M32 -> 0.00040317
B33: March | E33: ='Transmission tariffs'!E33+'Neutrality charge'!E33 -> 0.77795783 | F33: ='Transmission tariffs'!F33+'Neutrality charge'!F33 -> 0.03025473 | G33: ='Transmission tariffs'!G33+'Neutrality charge'!G33 -> 0.00126062 | K33: ='Transmission tariffs'!K33+'Neutrality charge'!K33 -> 0.19448945 | L33: ='Transmission tariffs'!L33+'Neutrality charge'!L33 -> 0.00756369 | M33: ='Transmission tariffs'!M33+'Neutrality charge'!M33 -> 0.00031515
B34: April | D34: ='Transmission tariffs'!D34+'Neutrality charge'!D34 -> 1.24437531 | E34: ='Transmission tariffs'!E34+'Neutrality charge'!E34 -> 0.56135029 | F34: ='Transmission tariffs'!F34+'Neutrality charge'!F34 -> 0.02256285 | G34: ='Transmission tariffs'!G34+'Neutrality charge'!G34 -> 0.00094012 | J34: ='Transmission tariffs'!J34+'Neutrality charge'!J34 -> 0.31109383 | K34: ='Transmission tariffs'!K34+'Neutrality charge'!K34 -> 0.14033757 | L34: ='Transmission tariffs'!L34+'Neutrality charge'!L34 -> 0.00564071 | M34: ='Transmission tariffs'!M34+'Neutrality charge'!M34 -> 0.00023503
B35: May | E35: ='Transmission tariffs'!E35+'Neutrality charge'!E35 -> 0.51388040 | F35: ='Transmission tariffs'!F35+'Neutrality charge'!F35 -> 0.01999889 | G35: ='Transmission tariffs'!G35+'Neutrality charge'!G35 -> 0.00083328 | K35: ='Transmission tariffs'!K35+'Neutrality charge'!K35 -> 0.12847010 | L35: ='Transmission tariffs'!L35+'Neutrality charge'!L35 -> 0.00499973 | M35: ='Transmission tariffs'!M35+'Neutrality charge'!M35 -> 0.00020832
B36: June | E36: ='Transmission tariffs'!E36+'Neutrality charge'!E36 -> 0.41755922 | F36: ='Transmission tariffs'!F36+'Neutrality charge'!F36 -> 0.01680004 | G36: ='Transmission tariffs'!G36+'Neutrality charge'!G36 -> 0.00070000 | K36: ='Transmission tariffs'!K36+'Neutrality charge'!K36 -> 0.10438980 | L36: ='Transmission tariffs'!L36+'Neutrality charge'!L36 -> 0.00420002 | M36: ='Transmission tariffs'!M36+'Neutrality charge'!M36 -> 0.00017500
B37: July | D37: ='Transmission tariffs'!D37+'Neutrality charge'!D37 -> 1.00932819 | E37: ='Transmission tariffs'!E37+'Neutrality charge'!E37 -> 0.40747082 | F37: ='Transmission tariffs'!F37+'Neutrality charge'!F37 -> 0.01584772 | G37: ='Transmission tariffs'!G37+'Neutrality charge'!G37 -> 0.00066032 | J37: ='Transmission tariffs'!J37+'Neutrality charge'!J37 -> 0.25233205 | K37: ='Transmission tariffs'!K37+'Neutrality charge'!K37 -> 0.10186771 | L37: ='Transmission tariffs'!L37+'Neutrality charge'!L37 -> 0.00396193 | M37: ='Transmission tariffs'!M37+'Neutrality charge'!M37 -> 0.00016508
B38: August | E38: ='Transmission tariffs'!E38+'Neutrality charge'!E38 -> 0.38735681 | F38: ='Transmission tariffs'!F38+'Neutrality charge'!F38 -> 0.01509074 | G38: ='Transmission tariffs'!G38+'Neutrality charge'!G38 -> 0.00062878 | K38: ='Transmission tariffs'!K38+'Neutrality charge'!K38 -> 0.09683921 | L38: ='Transmission tariffs'!L38+'Neutrality charge'!L38 -> 0.00377268 | M38: ='Transmission tariffs'!M38+'Neutrality charge'!M38 -> 0.00015719
B39: September | E39: ='Transmission tariffs'!E39+'Neutrality charge'!E39 -> 0.41630340 | F39: ='Transmission tariffs'!F39+'Neutrality charge'!F39 -> 0.01675121 | G39: ='Transmission tariffs'!G39+'Neutrality charge'!G39 -> 0.00069796 | K39: ='Transmission tariffs'!K39+'Neutrality charge'!K39 -> 0.10407585 | L39: ='Transmission tariffs'!L39+'Neutrality charge'!L39 -> 0.00418780 | M39: ='Transmission tariffs'!M39+'Neutrality charge'!M39 -> 0.00017449
B40: October | D40: ='Transmission tariffs'!D40+'Neutrality charge'!D40 -> 1.77314412 | E40: ='Transmission tariffs'!E40+'Neutrality charge'!E40 -> 0.49376639 | F40: ='Transmission tariffs'!F40+'Neutrality charge'!F40 -> 0.01921749 | G40: ='Transmission tariffs'!G40+'Neutrality charge'!G40 -> 0.00080072 | J40: ='Transmission tariffs'!J40+'Neutrality charge'!J40 -> 0.44328603 | K40: ='Transmission tariffs'!K40+'Neutrality charge'!K40 -> 0.12344160 | L40: ='Transmission tariffs'!L40+'Neutrality charge'!L40 -> 0.00480438 | M40: ='Transmission tariffs'!M40+'Neutrality charge'!M40 -> 0.00020018
B41: November | E41: ='Transmission tariffs'!E41+'Neutrality charge'!E41 -> 0.70953672 | F41: ='Transmission tariffs'!F41+'Neutrality charge'!F41 -> 0.02852100 | G41: ='Transmission tariffs'!G41+'Neutrality charge'!G41 -> 0.00118838 | K41: ='Transmission tariffs'!K41+'Neutrality charge'!K41 -> 0.17738418 | L41: ='Transmission tariffs'!L41+'Neutrality charge'!L41 -> 0.00713025 | M41: ='Transmission tariffs'!M41+'Neutrality charge'!M41 -> 0.00029710
B42: December | E42: ='Transmission tariffs'!E42+'Neutrality charge'!E42 -> 0.92394658 | F42: ='Transmission tariffs'!F42+'Neutrality charge'!F42 -> 0.03594428 | G42: ='Transmission tariffs'!G42+'Neutrality charge'!G42 -> 0.00149767 | K42: ='Transmission tariffs'!K42+'Neutrality charge'!K42 -> 0.23098665 | L42: ='Transmission tariffs'!L42+'Neutrality charge'!L42 -> 0.00898607 | M42: ='Transmission tariffs'!M42+'Neutrality charge'!M42 -> 0.00037442

Sheet Transmission tariffs
B4: ALL-IN TRANSMISSION TARIFFS 2027 (as established by the Dutch regulator ACM)
B6: Tariffs are all rounded to 8 decimals. Within-day prices are rounded up.
B8: Reserve prices FIRM capacity for interconnection points | C8: ENTRY REGULAR | I8: ENTRY STORAGE | O8: ENTRY LNG
B9: Payable prices FIRM capacity for domestic points
C10: Year | D10: Quarter | E10: Month | F10: Day | G10: Within-day | I10: Year | J10: Quarter | K10: Month | L10: Day | M10: Within-day | O10: Year | P10: Quarter | Q10: Month | R10: Day | S10: Within-day
C11: EUR/kWh/h/Y | D11: EUR/kWh/h/Q | E11: EUR/kWh/h/M | F11: EUR/kWh/h/DA | G11: EUR/kWh/h/WID | I11: EUR/kWh/h/Y | J11: EUR/kWh/h/Q | K11: EUR/kWh/h/M | L11: EUR/kWh/h/DA | M11: EUR/kWh/h/WID | O11: EUR/kWh/h/Y | P11: EUR/kWh/h/Q | Q11: EUR/kWh/h/M | R11: EUR/kWh/h/DA | S11: EUR/kWh/h/WID
B13: Januari | C13: 5.48094638 | D13: 2.50359119 | E13: 1.19751170 | F13: 0.04659180 | G13: 0.00194133 | I13: 1.37023660 | J13: 0.62589780 | K13: 0.29937793 | L13: 0.01164795 | M13: 0.00048534 | O13: 5.48094638 | P13: 2.50359119 | Q13: 1.19751170 | R13: 0.04659180 | S13: 0.00194133
B14: Februari | E14: 0.96683894 | F14: 0.04165144 | G14: 0.00173548 | K14: 0.24170974 | L14: 0.01041286 | M14: 0.00043387 | Q14: 0.96683894 | R14: 0.04165144 | S14: 0.00173548
B15: Maart | E15: 0.83721081 | F15: 0.03255907 | G15: 0.00135663 | K15: 0.20930270 | L15: 0.00813977 | M15: 0.00033916 | Q15: 0.83721081 | R15: 0.03255907 | S15: 0.00135663
B16: April | D16: 1.33915287 | E16: 0.60410541 | F16: 0.02428134 | G16: 0.00101173 | J16: 0.33478822 | K16: 0.15102635 | L16: 0.00607034 | M16: 0.00025294 | P16: 1.33915287 | Q16: 0.60410541 | R16: 0.02428134 | S16: 0.00101173
B17: Mei | E17: 0.55301998 | F17: 0.02152210 | G17: 0.00089676 | K17: 0.13825500 | L17: 0.00538052 | M17: 0.00022419 | Q17: 0.55301998 | R17: 0.02152210 | S17: 0.00089676
B18: Juni | E18: 0.44936252 | F18: 0.01807961 | G18: 0.00075332 | K18: 0.11234063 | L18: 0.00451990 | M18: 0.00018833 | Q18: 0.44936252 | R18: 0.01807961 | S18: 0.00075332
B19: Juli | D19: 1.08620344 | E19: 0.43850574 | F19: 0.01705475 | G19: 0.00071062 | J19: 0.27155086 | K19: 0.10962644 | L19: 0.00426369 | M19: 0.00017766 | P19: 1.08620344 | Q19: 0.43850574 | R19: 0.01705475 | S19: 0.00071062
B20: Augustus | E20: 0.41685976 | F20: 0.01624012 | G20: 0.00067668 | K20: 0.10421494 | L20: 0.00406003 | M20: 0.00016917 | Q20: 0.41685976 | R20: 0.01624012 | S20: 0.00067668
B21: September | E21: 0.44801106 | F21: 0.01802706 | G21: 0.00075113 | K21: 0.11200276 | L21: 0.00450676 | M21: 0.00018779 | Q21: 0.44801106 | R21: 0.01802706 | S21: 0.00075113
B22: Oktober | D22: 1.90819524 | E22: 0.53137400 | F22: 0.02068119 | G22: 0.00086172 | J22: 0.47704881 | K22: 0.13284350 | L22: 0.00517030 | M22: 0.00021543 | P22: 1.90819524 | Q22: 0.53137400 | R22: 0.02068119 | S22: 0.00086172
B23: November | E23: 0.76357842 | F23: 0.03069330 | G23: 0.00127889 | K23: 0.19089461 | L23: 0.00767332 | M23: 0.00031973 | Q23: 0.76357842 | R23: 0.03069330 | S23: 0.00127889
B24: December | E24: 0.99431876 | F24: 0.03868197 | G24: 0.00161175 | K24: 0.24857969 | L24: 0.00967049 | M24: 0.00040294 | Q24: 0.99431876 | R24: 0.03868197 | S24: 0.00161175
B26: Reserve prices FIRM capacity for interconnection points | C26: EXIT NON-STORAGE | I26: EXIT STORAGE
B27: Payable prices FIRM capacity for domestic points
C28: Year | D28: Quarter | E28: Month | F28: Day | G28: Within-day | I28: Year | J28: Quarter | K28: Month | L28: Day | M28: Within-day
C29: EUR/kWh/h/Y | D29: EUR/kWh/h/Q | E29: EUR/kWh/h/M | F29: EUR/kWh/h/DA | G29: EUR/kWh/h/WID | I29: EUR/kWh/h/Y | J29: EUR/kWh/h/Q | K29: EUR/kWh/h/M | L29: EUR/kWh/h/DA | M29: EUR/kWh/h/WID
B31: Januari | C31: 5.10086298 | D31: 2.32997639 | E31: 1.11446869 | F31: 0.04336083 | G31: 0.00180671 | I31: 1.27521575 | J31: 0.58249410 | K31: 0.27861717 | L31: 0.01084021 | M31: 0.00045168
B32: Februari | E32: 0.89979223 | F32: 0.03876306 | G32: 0.00161513 | K32: 0.22494806 | L32: 0.00969077 | M32: 0.00040379
B33: Maart | E33: 0.77915333 | F33: 0.03030122 | G33: 0.00126256 | K33: 0.19478833 | L33: 0.00757531 | M33: 0.00031564
B34: April | D34: 1.24628756 | E34: 0.56221293 | F34: 0.02259752 | G34: 0.00094157 | J34: 0.31157189 | K34: 0.14055323 | L34: 0.00564938 | M34: 0.00023540
B35: Mei | E35: 0.51467009 | F35: 0.02002962 | G35: 0.00083457 | K35: 0.12866752 | L35: 0.00500741 | M35: 0.00020865
B36: Juni | E36: 0.41820089 | F36: 0.01682586 | G36: 0.00070108 | K36: 0.10455022 | L36: 0.00420647 | M36: 0.00017527
B37: Juli | D37: 1.01087924 | E37: 0.40809699 | F37: 0.01587207 | G37: 0.00066134 | J37: 0.25271981 | K37: 0.10202425 | L37: 0.00396802 | M37: 0.00016534
B38: Augustus | E38: 0.38795207 | F38: 0.01511393 | G38: 0.00062975 | K38: 0.09698802 | L38: 0.00377848 | M38: 0.00015744
B39: September | E39: 0.41694314 | F39: 0.01677695 | G39: 0.00069904 | K39: 0.10423579 | L39: 0.00419424 | M39: 0.00017476
B40: Oktober | D40: 1.77586894 | E40: 0.49452517 | F40: 0.01924702 | G40: 0.00080196 | J40: 0.44396724 | K40: 0.12363129 | L40: 0.00481176 | M40: 0.00020049
B41: November | E41: 0.71062708 | F41: 0.02856483 | G41: 0.00119021 | K41: 0.17765677 | L41: 0.00714121 | M41: 0.00029756
B42: December | E42: 0.92536642 | F42: 0.03599952 | G42: 0.00149998 | K42: 0.23134161 | L42: 0.00899988 | M42: 0.00037500

Sheet Neutrality charge
B4: NEUTRALITY CHARGE 2027 (as established by GTS in accordance with calculation methodology as stated in the Transmission Code Gas - TSO)
B6: Charges are all rounded to 8 decimals. Within-day prices are rounded up.
B8: Charge FIRM capacity for interconnection points | C8: ENTRY REGULAR | I8: ENTRY STORAGE | O8: ENTRY LNG
B9: Payable charge FIRM capacity for domestic points
C10: Year | D10: Quarter | E10: Month | F10: Day | G10: Within-day | I10: Year | J10: Quarter | K10: Month | L10: Day | M10: Within-day | O10: Year | P10: Quarter | Q10: Month | R10: Day | S10: Within-day
C11: EUR/kWh/h/Y | D11: EUR/kWh/h/Q | E11: EUR/kWh/h/M | F11: EUR/kWh/h/DA | G11: EUR/kWh/h/WID | I11: EUR/kWh/h/Y | J11: EUR/kWh/h/Q | K11: EUR/kWh/h/M | L11: EUR/kWh/h/DA | M11: EUR/kWh/h/WID | O11: EUR/kWh/h/Y | P11: EUR/kWh/h/Q | Q11: EUR/kWh/h/M | R11: EUR/kWh/h/DA | S11: EUR/kWh/h/WID
B13: Januari | C13: -0.00840974 | D13: -0.00384141 | E13: -0.00183741 | F13: -0.00007149 | G13: -0.00000298 | I13: -0.00210243 | J13: -0.00096035 | K13: -0.00045935 | L13: -0.00001787 | M13: -0.00000075 | O13: -0.00840974 | P13: -0.00384141 | Q13: -0.00183741 | R13: -0.00007149 | S13: -0.00000298
B14: Februari | E14: -0.00148348 | F14: -0.00006391 | G14: -0.00000267 | K14: -0.00037087 | L14: -0.00001598 | M14: -0.00000067 | Q14: -0.00148348 | R14: -0.00006391 | S14: -0.00000267
B15: Maart | E15: -0.00128458 | F15: -0.00004996 | G15: -0.00000209 | K15: -0.00032115 | L15: -0.00001249 | M15: -0.00000053 | Q15: -0.00128458 | R15: -0.00004996 | S15: -0.00000209
B16: April | D16: -0.00205474 | E16: -0.00092691 | F16: -0.00003726 | G16: -0.00000156 | J16: -0.00051369 | K16: -0.00023173 | L16: -0.00000931 | M16: -0.00000039 | P16: -0.00205474 | Q16: -0.00092691 | R16: -0.00003726 | S16: -0.00000156
B17: Mei | E17: -0.00084853 | F17: -0.00003302 | G17: -0.00000138 | K17: -0.00021213 | L17: -0.00000826 | M17: -0.00000035 | Q17: -0.00084853 | R17: -0.00003302 | S17: -0.00000138
B18: Juni | E18: -0.00068948 | F18: -0.00002774 | G18: -0.00000116 | K18: -0.00017237 | L18: -0.00000694 | M18: -0.00000029 | Q18: -0.00068948 | R18: -0.00002774 | S18: -0.00000116
B19: Juli | D19: -0.00166663 | E19: -0.00067283 | F19: -0.00002617 | G19: -0.00000110 | J19: -0.00041666 | K19: -0.00016821 | L19: -0.00000654 | M19: -0.00000028 | P19: -0.00166663 | Q19: -0.00067283 | R19: -0.00002617 | S19: -0.00000110
B20: Augustus | E20: -0.00063961 | F20: -0.00002492 | G20: -0.00000104 | K20: -0.00015990 | L20: -0.00000623 | M20: -0.00000026 | Q20: -0.00063961 | R20: -0.00002492 | S20: -0.00000104
B21: September | E21: -0.00068741 | F21: -0.00002766 | G21: -0.00000116 | K21: -0.00017185 | L21: -0.00000691 | M21: -0.00000029 | Q21: -0.00068741 | R21: -0.00002766 | S21: -0.00000116
B22: Oktober | D22: -0.00292786 | E22: -0.00081532 | F22: -0.00003173 | G22: -0.00000133 | J22: -0.00073196 | K22: -0.00020383 | L22: -0.00000793 | M22: -0.00000034 | P22: -0.00292786 | Q22: -0.00081532 | R22: -0.00003173 | S22: -0.00000133
B23: November | E23: -0.00117160 | F23: -0.00004709 | G23: -0.00000197 | K23: -0.00029290 | L23: -0.00001177 | M23: -0.00000050 | Q23: -0.00117160 | R23: -0.00004709 | S23: -0.00000197
B24: December | E24: -0.00152564 | F24: -0.00005935 | G24: -0.00000248 | K24: -0.00038141 | L24: -0.00001484 | M24: -0.00000062 | Q24: -0.00152564 | R24: -0.00005935 | S24: -0.00000248
B26: Charge FIRM capacity for interconnection points | C26: EXIT NON-STORAGE | I26: EXIT STORAGE
B27: Payable charge FIRM capacity for domestic points
C28: Year | D28: Quarter | E28: Month | F28: Day | G28: Within-day | I28: Year | J28: Quarter | K28: Month | L28: Day | M28: Within-day
C29: EUR/kWh/h/Y | D29: EUR/kWh/h/Q | E29: EUR/kWh/h/M | F29: EUR/kWh/h/DA | G29: EUR/kWh/h/WID | I29: EUR/kWh/h/Y | J29: EUR/kWh/h/Q | K29: EUR/kWh/h/M | L29: EUR/kWh/h/DA | M29: EUR/kWh/h/WID
B31: Januari | C31: -0.00782656 | D31: -0.00357502 | E31: -0.00171000 | F31: -0.00006653 | G31: -0.00000278 | I31: -0.00195664 | J31: -0.00089376 | K31: -0.00042750 | L31: -0.00001663 | M31: -0.00000070
B32: Februari | E32: -0.00138060 | F32: -0.00005948 | G32: -0.00000248 | K32: -0.00034515 | L32: -0.00001487 | M32: -0.00000062
B33: Maart | E33: -0.00119550 | F33: -0.00004649 | G33: -0.00000194 | K33: -0.00029888 | L33: -0.00001162 | M33: -0.00000049
B34: April | D34: -0.00191225 | E34: -0.00086264 | F34: -0.00003467 | G34: -0.00000145 | J34: -0.00047806 | K34: -0.00021566 | L34: -0.00000867 | M34: -0.00000037
B35: Mei | E35: -0.00078969 | F35: -0.00003073 | G35: -0.00000129 | K35: -0.00019742 | L35: -0.00000768 | M35: -0.00000033
B36: Juni | E36: -0.00064167 | F36: -0.00002582 | G36: -0.00000108 | K36: -0.00016042 | L36: -0.00000645 | M36: -0.00000027
B37: Juli | D37: -0.00155105 | E37: -0.00062617 | F37: -0.00002435 | G37: -0.00000102 | J37: -0.00038776 | K37: -0.00015654 | L37: -0.00000609 | M37: -0.00000026
B38: Augustus | E38: -0.00059526 | F38: -0.00002319 | G38: -0.00000097 | K38: -0.00014881 | L38: -0.00000580 | M38: -0.00000025
B39: September | E39: -0.00063974 | F39: -0.00002574 | G39: -0.00000108 | K39: -0.00015994 | L39: -0.00000644 | M39: -0.00000027
B40: Oktober | D40: -0.00272482 | E40: -0.00075878 | F40: -0.00002953 | G40: -0.00000124 | J40: -0.00068121 | K40: -0.00018969 | L40: -0.00000738 | M40: -0.00000031
B41: November | E41: -0.00109036 | F41: -0.00004383 | G41: -0.00000183 | K41: -0.00027259 | L41: -0.00001096 | M41: -0.00000046
B42: December | E42: -0.00141984 | F42: -0.00005524 | G42: -0.00000231 | K42: -0.00035496 | L42: -0.00001381 | M42: -0.00000058

Sheet bladen rechts alleen voor inter (hidden)
B4: De tabbladen rechts zijn alleen voor intern gebruik beschikbaar. Voor extern gebruik zullen deze worden verborgen.

Sheet Optimisation (hidden)
B4: COLLECTING DATA FOR OPTIMALISATION
B6: Helping cell: row number | C6: Numbers of months applicable | D6: Month number | E6: Final month | F6: Year | G6: Month name | H6: Helping cell: code Y&M | I6: Days per month in desired period
L7: date | M7: year | N7: quarter | O7: month | P7: day
B8: 0 | D8: =O8 -> 3 | F8: =M8 -> 2027 | G8: =IF(D8="",D8,INDEX(C$60:C$71,$D8,1)) -> March | H8: =CONCATENATE(F8,G8) -> 2027March | I8: =P19 -> 31 | K8: Start date | L8: ='Period booking'!D8 -> 2027-03-01 | M8: =YEAR(L8) -> 2027 | N8: n.a. | O8: =MONTH(L8) -> 3 | P8: =DAY(L8) -> 1
B9: =B8+1 -> 1 | C9: =IF(B9>P$18,"",B9) -> 1 | D9: =IF($C9="",$C9,IF($D8+1=13,1,IF($D8+1>13,$D8+1-12,$D8+1))) -> 4 | E9: =IF(AND(D10="",D9<>""),"END","") ->  | F9: =IF(D9="","",IF(AND($D9>$D8,$F8<$M$9),$M$8,$M$9)) -> 2027 | G9: =IF(D9="",D9,INDEX(C$60:C$71,D9,1)) -> April | H9: 2027April | I9: =IF($E9="END",$P$9,IF($D9="","",VLOOKUP($H9,$D$60:$I$83,5,FALSE))) -> 30 | K9: End date | L9: ='Period booking'!D9 -> 2027-07-01 | M9: =YEAR(L9) -> 2027 | N9: n.a. | O9: =MONTH(L9) -> 7 | P9: =DAY(L9) -> 1
B10: 2 | C10: 2 | D10: 5 | F10: 2027 | G10: May | H10: 2027May | I10: 31
B11: 3 | C11: 3 | D11: 6 | F11: 2027 | G11: June | H11: 2027June | I11: 30 | K11: Capacity | O11: kWh/h | P11: ='Period booking'!D11 -> 500,000
B12: 4 | C12: 4 | D12: 7 | E12: END | F12: 2027 | G12: July | H12: 2027July | I12: 1 | K12: Applicable yearly reserve price | O12: EUR/kWh/h/y | P12: =K60 -> 5.0930
B13: 5 | K13: Payable amount in case of yearly (flat) booking | O13: EUR/y | P13: =P11*P12 -> 2,546,518
B14: 6 | K14: Payable amount after optimalisation | O14: EUR/y | P14: =X53 -> 1,019,090
B15: 7 | K15: Optimisation to yearly booking? | P15: =IF(P13<P14,"Yes", "No") -> No
B16: 8
B17: 9 | K17: Check same month: | P17: =IF(AND(M8=M9,O8=O9),"ZELFDEMAAND","No") -> No
B18: 10 | K18: Number of months involved after starting month: | P18: =IF(($O$9-$O$8)>0,($O$9-$O$8),IF(($O$9-$O$8)<0,IF($P$8=1,12+($O$9-$O$8),12+($O$9-$O$8)),IF($M$9=$M$8,0,13))) -> 4
B19: 11 | K19: Number of days involved in starting month | P19: =IF(P$17="ZELFDEMAAND",$P$9-$P$8+1,_xlfn.DAYS(EOMONTH($L$8,0),$L$8)+1) -> 31
B20: 12
B23: OPTIMISATION FOR DESIRED PERIOD BOOKING INTO NON-YEARLY CAPACITY PRODUCTS
Y25: Optimised non-yearly product
B26: Helping cell: row number | C26: Year | D26: Month | E26: Helping cell: code Y&M | F26: Month number | G26: Days per month in desired period | H26: Days in month | I26: Quarter number | J26: Days in quarter | K26: Days in year | L26: Reserve price for daily products | M26: Reserve price for monthly products | N26: Reserve price for quarterly products | O26: Reserve price for a yearly product | P26: Optimisation 2.1.2. (c) | R26: Optimisation 2.1.2. (b) | T26: Optimisation 2.1.2. (a) | W26: Optimised period booking | Y26: Year | Z26: Quarter | AA26: Month | AB26: Day-ahead
L27: EUR/month | M27: EUR/month | N27: EUR/quarter | O27: EUR/year | P27: MIN (D vs M) | Q27: EUR/month | R27: MIN (D;M vs Q) | S27: EUR/month | T27: MIN (D;M;Q vs Y) | U27: correction yearly product | V27: EUR/month | W27: Product type | X27: EUR/month
U28: =IF($T$53=12,IF($T28="Y",$T28,""),IF($T$53=13,IF($T28="","",IF(OR(AND($T28="Y",$T27=""),AND($T28="Y",$T29="")),IF($S28<$S40,$P28,IF(COUNTIF($U27:$U$29,"Y")=12,$P27)),"Y")),IF($T$53=11,IF(OR(AND($T28="",$T27="Y"),AND($T28="",$T29="Y")),"?",IF($T28="Y",$T28,"")),""))) -> 
B29: 1 | C29: =M$8 -> 2027 | D29: January | E29: =CONCATENATE(C29,D29) -> 2027January | F29: 1 | G29: =_xlfn.IFNA(VLOOKUP(E29,H$8:I$20,2,FALSE),0) -> 0 | H29: =INDEX($B$60:$J$83,$B29,7) -> 31 | I29: =INDEX($B$60:$J$83,$B29,6) -> 1 | J29: =INDEX($B$60:$J$83,$B29,8) -> 90 | K29: =IF(U29="Y",SUMIF($U$29:$U$52,"Y",$H$29:$H$52),"") ->  | L29: =N60*G29 -> 0 | M29: =IF($G29<>0,M60,0) -> 0 | N29: =IF($G29<>0,L60,0) -> 0 | O29: =IF($G29<>0,K60,0) -> 0 | P29: =IF($G29<>0,IF(L29<M29,"D", "M"),"") ->  | Q29: =IF(P29="D",L29,M29) -> 0 | R29: =IF($G29=0,"",IF($I29<>$I28,IF(SUM($Q29:$Q31)>=$N29,"Q",""),IF($R28="Q","Q",""))) ->  | S29: =IF($R29="Q",$N29*$H29/$J29,$Q29) -> 0 | T29: =IF($G29=0,"",IF(SUM($S29:$S40)>=$O29,"Y",IF($T28="Y","Y",""))) ->  | U29: =IF($T$53=12,IF($T29="Y",$T29,""),IF($T$53=13,IF($T29="","",IF(AND($T29="Y",$T28=""),IF($S29<$S41,$P29,"Y"),IF(AND($T29="Y",$T30=""),IF($S29<$S17,$P29,"Y"),"Y"))),IF($T$53=11,IF(OR(AND($T29="",$T28="Y"),AND($T29="",$T30="Y")),"?",IF($T29="Y",$T29,"")),IF($T$53=10,IF(OR(AND($T29="",$T28="Y"),AND($T29="",$T30="Y"),AND($T29="",$T28="",$T27="Y"),AND($T29="",$T30="",$T31="Y")),"?",IF($T29="Y",$T29,"")),IF($T$53=9,IF(OR(AND($T29="",$T28="Y"),AND($T29="",$T30="Y"),AND($T29="",$T28="",$T27="Y"),AND($T29="",$T30="",$T31="Y"),AND($T29="",$T28="",$T27="",$T26="Y"),AND($T29="",$T30="",$T31="",$T32="Y")),"?",IF($T29="Y",$T29,"")),""))))) ->  | V29: =IF($U29="",0,IF($T$53=11,"no 12th month in yearly booking",IF($T$53=10,"no 11th and 12th month in yearly booking",IF($T$53=9,"no 10th, 11th and 12th month in yearly booking",IF($U29="Y",$O29*$H29/$K29,$S29))))) -> 0 | W29: =IF(AND($G29=0,$U29=""),"",IF(OR($U29="Y",$U29="?"),$U29,IF($R29="Q",$R29,$P29))) ->  | X29: =IFERROR(IF(AND($G29=0,$U29=""),"",IF(OR($U29="Y",$U29="?"),$V29,IF($R29="Q",$S29,$Q29)))*$P$11,$V29) -> 0 | Y29: =IF($W29="Y","Y",IF($W29="?",$W29,"")) ->  | Z29: =IF($W29="Q","Q"&$I29,"") ->  | AA29: =IF($W29="M","M"&$F29,"") ->  | AB29: =IF($W29="D",$G29,"") -> 
B30: =B29+1 -> 2 | C30: 2027 | D30: February | E30: 2027February | F30: 2 | G30: =_xlfn.IFNA(VLOOKUP(E30,H$8:I$20,2,FALSE),0) -> 0 | H30: =INDEX($B$60:$J$83,$B30,7) -> 28 | I30: =INDEX($B$60:$J$83,$B30,6) -> 1 | J30: =INDEX($B$60:$J$83,$B30,8) -> 90 | K30: =IF(U30="Y",SUMIF($U$29:$U$52,"Y",$H$29:$H$52),"") ->  | L30: 0 | M30: 0 | N30: 0 | O30: 0 | P30: =IF($G30<>0,IF(L30<M30,"D", "M"),"") ->  | Q30: =IF(P30="D",L30,M30) -> 0 | R30: =IF($G30=0,"",IF($I30<>$I29,IF(SUM($Q30:$Q32)>=$N30,"Q",""),IF($R29="Q","Q",""))) ->  | S30: =IF($R30="Q",$N30*$H30/$J30,$Q30) -> 0 | T30: =IF($G30=0,"",IF(SUM($S30:$S41)>=$O30,"Y",IF($T29="Y","Y",""))) ->  | V30: 0 | X30: =IFERROR(IF(AND($G30=0,$U30=""),"",IF(OR($U30="Y",$U30="?"),$V30,IF($R30="Q",$S30,$Q30)))*$P$11,$V30) -> 0 | Y30: =IF($W30="Y","Y",IF($W30="?",$W30,"")) -> 
B31: 3 | C31: 2027 | D31: March | E31: 2027March | F31: 3 | G31: 31 | H31: 31 | I31: =INDEX($B$60:$J$83,$B31,6) -> 1 | J31: 90 | L31: € 0.938 | M31: € 0.778 | N31: € 2.326 | O31: € 5.093 | P31: M | Q31: =IF(P31="D",L31,M31) -> € 0.778 | S31: =IF($R31="Q",$N31*$H31/$J31,$Q31) -> € 0.778 | T31: =IF($G31=0,"",IF(SUM($S31:$S42)>=$O31,"Y",IF($T30="Y","Y",""))) ->  | V31: 0 | W31: M | X31: € 388,979 | AA31: M3
B32: 4 | C32: 2027 | D32: April | E32: 2027April | F32: 4 | G32: 30 | H32: 30 | I32: 2 | J32: 91 | L32: € 0.677 | M32: € 0.561 | N32: € 1.244 | O32: € 5.093 | P32: M | Q32: =IF(P32="D",L32,M32) -> € 0.561 | R32: Q | S32: =IF($R32="Q",$N32*$H32/$J32,$Q32) -> € 0.410 | T32: =IF($G32=0,"",IF(SUM($S32:$S43)>=$O32,"Y",IF($T31="Y","Y",""))) ->  | V32: 0 | W32: Q | X32: € 205,117 | Z32: Q2
B33: 5 | C33: 2027 | D33: May | E33: 2027May | F33: 5 | G33: 31 | H33: 31 | I33: 2 | J33: 91 | K33: =IF(U33="Y",SUMIF($U$29:$U$52,"Y",$H$29:$H$52),"") ->  | L33: € 0.620 | M33: € 0.514 | N33: € 1.244 | O33: € 5.093 | P33: M | Q33: =IF(P33="D",L33,M33) -> € 0.514 | R33: Q | S33: =IF($R33="Q",$N33*$H33/$J33,$Q33) -> € 0.424 | T33: =IF($G33=0,"",IF(SUM($S33:$S44)>=$O33,"Y",IF($T32="Y","Y",""))) ->  | V33: 0 | W33: Q | X33: € 211,954 | Y33: =IF($W33="Y","Y",IF($W33="?",$W33,"")) ->  | Z33: Q2
B34: 6 | C34: 2027 | D34: June | E34: 2027June | F34: 6 | G34: 30 | H34: 30 | I34: 2 | J34: 91 | K34: =IF(U34="Y",SUMIF($U$29:$U$52,"Y",$H$29:$H$52),"") ->  | L34: € 0.504 | M34: € 0.418 | N34: € 1.244 | O34: € 5.093 | P34: M | Q34: € 0.418 | R34: Q | S34: =IF($R34="Q",$N34*$H34/$J34,$Q34) -> € 0.410 | T34: =IF($G34=0,"",IF(SUM($S34:$S45)>=$O34,"Y",IF($T33="Y","Y",""))) ->  | V34: 0 | W34: =IF(AND($G34=0,$U34=""),"",IF(OR($U34="Y",$U34="?"),$U34,IF($R34="Q",$R34,$P34))) -> Q | X34: € 205,117 | Z34: Q2
B35: 7 | C35: 2027 | D35: July | E35: 2027July | F35: 7 | G35: 1 | H35: 31 | I35: 3 | J35: 92 | L35: € 0.016 | M35: € 0.407 | N35: € 1.009 | O35: € 5.093 | P35: D | Q35: =IF(P35="D",L35,M35) -> € 0.016 | S35: € 0.016 | T35: =IF($G35=0,"",IF(SUM($S35:$S46)>=$O35,"Y",IF($T34="Y","Y",""))) ->  | V35: 0 | W35: =IF(AND($G35=0,$U35=""),"",IF(OR($U35="Y",$U35="?"),$U35,IF($R35="Q",$R35,$P35))) -> D | X35: € 7,924 | AB35: 1
B36: 8 | C36: 2027 | D36: August | E36: 2027August | F36: 8 | G36: 0 | H36: 31 | I36: 3 | J36: 92 | L36: 0 | M36: 0 | N36: 0 | O36: 0 | Q36: 0 | S36: 0 | T36: =IF($G36=0,"",IF(SUM($S36:$S47)>=$O36,"Y",IF($T35="Y","Y",""))) ->  | V36: 0 | W36: =IF(AND($G36=0,$U36=""),"",IF(OR($U36="Y",$U36="?"),$U36,IF($R36="Q",$R36,$P36))) ->  | X36: 0
B37: 9 | C37: 2027 | D37: September | E37: 2027September | F37: 9 | G37: 0 | H37: 30 | I37: 3 | J37: 92 | L37: 0 | M37: 0 | N37: 0 | O37: 0 | Q37: 0 | S37: 0 | V37: 0 | X37: 0
B38: 10 | C38: 2027 | D38: October | E38: 2027October | F38: 10 | G38: 0 | H38: 31 | I38: 4 | J38: 92 | L38: 0 | M38: 0 | N38: 0 | O38: 0 | Q38: 0 | S38: 0 | V38: 0 | X38: 0
B39: 11 | C39: 2027 | D39: November | E39: 2027November | F39: 11 | G39: 0 | H39: 30 | I39: 4 | J39: 92 | L39: 0 | M39: 0 | N39: 0 | O39: 0 | Q39: 0 | S39: 0 | V39: 0 | X39: 0
B40: 12 | C40: 2027 | D40: December | E40: 2027December | F40: 12 | G40: 0 | H40: 31 | I40: 4 | J40: 92 | L40: 0 | M40: 0 | N40: 0 | O40: 0 | Q40: 0 | S40: 0 | V40: 0 | X40: 0
B41: 13 | C41: =YEAR(L$8+366) -> 2028 | D41: January | E41: 2028January | F41: 1 | G41: 0 | H41: 31 | I41: =INDEX($B$60:$J$83,$B41,6) -> 1 | J41: 91 | L41: 0 | M41: 0 | N41: 0 | O41: 0 | Q41: 0 | S41: 0 | V41: 0 | X41: 0
B42: =B41+1 -> 14 | C42: 2028 | D42: February | E42: 2028February | F42: 2 | G42: 0 | H42: 29 | I42: =INDEX($B$60:$J$83,$B42,6) -> 1 | J42: 91 | L42: 0 | M42: 0 | N42: 0 | O42: 0 | Q42: 0 | S42: 0 | V42: 0 | X42: 0
B43: 15 | C43: 2028 | D43: March | E43: 2028March | F43: 3 | G43: 0 | H43: 31 | I43: =INDEX($B$60:$J$83,$B43,6) -> 1 | J43: 91 | L43: 0 | M43: 0 | N43: 0 | O43: 0 | Q43: 0 | S43: 0 | V43: 0 | X43: 0
B44: 16 | C44: 2028 | D44: April | E44: 2028April | F44: 4 | G44: 0 | H44: 30 | I44: 2 | J44: 91 | L44: 0 | M44: 0 | N44: 0 | O44: 0 | Q44: 0 | S44: 0 | T44: =IF($G44=0,"",IF(SUM($S44:$S55)>=$O44,"Y",IF($T43="Y","Y",""))) ->  | V44: 0 | X44: 0
B45: 17 | C45: 2028 | D45: May | E45: 2028May | F45: 5 | G45: 0 | H45: 31 | I45: 2 | J45: 91 | L45: 0 | M45: 0 | N45: 0 | O45: 0 | Q45: 0 | S45: 0 | V45: 0 | X45: 0
B46: 18 | C46: 2028 | D46: June | E46: 2028June | F46: 6 | G46: 0 | H46: 30 | I46: 2 | J46: 91 | L46: 0 | M46: 0 | N46: 0 | O46: 0 | Q46: 0 | S46: 0 | V46: 0 | X46: 0
B47: 19 | C47: 2028 | D47: July | E47: 2028July | F47: 7 | G47: 0 | H47: 31 | I47: 3 | J47: 92 | L47: 0 | M47: 0 | N47: 0 | O47: 0 | Q47: 0 | S47: 0 | V47: 0 | X47: 0
B48: 20 | C48: 2028 | D48: August | E48: 2028August | F48: 8 | G48: 0 | H48: 31 | I48: 3 | J48: 92 | L48: 0 | M48: 0 | N48: 0 | O48: 0 | Q48: 0 | S48: 0 | V48: 0 | X48: 0
B49: 21 | C49: 2028 | D49: September | E49: 2028September | F49: 9 | G49: 0 | H49: 30 | I49: 3 | J49: 92 | L49: 0 | M49: 0 | N49: 0 | O49: 0 | Q49: 0 | S49: 0 | V49: 0 | X49: 0
B50: 22 | C50: 2028 | D50: October | E50: 2028October | F50: 10 | G50: 0 | H50: 31 | I50: 4 | J50: 92 | L50: 0 | M50: 0 | N50: 0 | O50: 0 | Q50: 0 | S50: 0 | V50: 0 | X50: 0
B51: 23 | C51: 2028 | D51: November | E51: 2028November | F51: 11 | G51: 0 | H51: 30 | I51: 4 | J51: 92 | L51: 0 | M51: 0 | N51: 0 | O51: 0 | Q51: 0 | S51: 0 | V51: 0 | X51: 0
B52: 24 | C52: 2028 | D52: December | E52: 2028December | F52: 12 | G52: 0 | H52: 31 | I52: 4 | J52: 92 | L52: 0 | M52: 0 | N52: 0 | O52: 0 | Q52: 0 | S52: 0 | V52: 0 | X52: 0
T53: =COUNTIF($T$29:$T$52,"Y") -> 0 | X53: =SUM(X29:X52) -> € 1,019,090
B55: HELPING TABLE: COLLECTING DATES, NUMBER OF DAYS IN MONTH AND QUARTER AND RESERVE PRICES
F57: DATE INFORMATION | K57: RESERVE PRICES
B59: Year | C59: Month | D59: Helping cell: code Y&M | F59: Month number | G59: Quarter number | H59: Number of days in month | I59: Number of days in quarter | K59: Year | L59: Quarter | M59: Month | N59: Day
B60: =M$8 -> 2027 | C60: January | D60: =CONCATENATE(B60,C60) -> 2027January | F60: 1 | G60: 1 | H60: =DAY(EOMONTH(DATE(B60,F60,1),0)) -> 31 | I60: =IF(G60<>G59,SUM(H60:H62),I59) -> 90 | K60: =IF('Period booking'!$D$10="Exit storage",INDEX(exitstorage,1,1),IF('Period booking'!$D$10="Exit non-storage",INDEX(exit,1,1),IF('Period booking'!$D$10="Entry storage",INDEX(entrystorage,1,1),IF('Period booking'!$D$10="Entry Regular",INDEX(entry,1,1),IF('Period booking'!$D$10="Entry LNG",INDEX(entryLNG,1,1)))))) -> 5.09303642 | L60: =IF('Period booking'!$D$10="Exit storage",INDEX(exitstorage,$G60,2),IF('Period booking'!$D$10="Exit non-storage",INDEX(exit,$G60,2),IF('Period booking'!$D$10="Entry storage",INDEX(entrystorage,$G60,2),IF('Period booking'!$D$10="Entry Regular",INDEX(entry,$G60,2),IF('Period booking'!$D$10="Entry LNG",INDEX(entryLNG,$G60,2)))))) -> 2.32640137 | M60: =IF('Period booking'!$D$10="Exit storage",INDEX(exitstorage,$F60,3),IF('Period booking'!$D$10="Exit non-storage",INDEX(exit,$F60,3),IF('Period booking'!$D$10="Entry storage",INDEX(entrystorage,$F60,3),IF('Period booking'!$D$10="Entry Regular",INDEX(entry,$F60,3),IF('Period booking'!$D$10="Entry LNG",INDEX(entryLNG,$F60,3)))))) -> 1.11275869 | N60: =IF('Period booking'!$D$10="Exit storage",INDEX(exitstorage,$F60,4),IF('Period booking'!$D$10="Exit non-storage",INDEX(exit,$F60,4),IF('Period booking'!$D$10="Entry storage",INDEX(entrystorage,$F60,4),IF('Period booking'!$D$10="Entry Regular",INDEX(entry,$F60,4),IF('Period booking'!$D$10="Entry non-storage",INDEX(entry,1,1),IF('Period booking'!$D$10="Entry LNG",INDEX(entryLNG,$F60,4))))))) -> 0.0432943
B61: 2027 | C61: February | D61: =CONCATENATE(B61,C61) -> 2027February | F61: 2 | G61: 1 | H61: =DAY(EOMONTH(DATE(B61,F61,1),0)) -> 28 | I61: =IF(G61<>G60,SUM(H61:H63),I60) -> 90 | K61: =IF('Period booking'!$D$10="Exit storage",INDEX(exitstorage,1,1),IF('Period booking'!$D$10="Exit non-storage",INDEX(exit,1,1),IF('Period booking'!$D$10="Entry storage",INDEX(entrystorage,1,1),IF('Period booking'!$D$10="Entry Regular",INDEX(entry,1,1),IF('Period booking'!$D$10="Entry LNG",INDEX(entryLNG,1,1)))))) -> 5.09303642 | L61: =IF('Period booking'!$D$10="Exit storage",INDEX(exitstorage,$G61,2),IF('Period booking'!$D$10="Exit non-storage",INDEX(exit,$G61,2),IF('Period booking'!$D$10="Entry storage",INDEX(entrystorage,$G61,2),IF('Period booking'!$D$10="Entry Regular",INDEX(entry,$G61,2),IF('Period booking'!$D$10="Entry LNG",INDEX(entryLNG,$G61,2)))))) -> 2.32640137 | M61: =IF('Period booking'!$D$10="Exit storage",INDEX(exitstorage,$F61,3),IF('Period booking'!$D$10="Exit non-storage",INDEX(exit,$F61,3),IF('Period booking'!$D$10="Entry storage",INDEX(entrystorage,$F61,3),IF('Period booking'!$D$10="Entry Regular",INDEX(entry,$F61,3),IF('Period booking'!$D$10="Entry LNG",INDEX(entryLNG,$F61,3)))))) -> 0.89841163 | N61: =IF('Period booking'!$D$10="Exit storage",INDEX(exitstorage,$F61,4),IF('Period booking'!$D$10="Exit non-storage",INDEX(exit,$F61,4),IF('Period booking'!$D$10="Entry storage",INDEX(entrystorage,$F61,4),IF('Period booking'!$D$10="Entry Regular",INDEX(entry,$F61,4),IF('Period booking'!$D$10="Entry non-storage",INDEX(entry,1,1),IF('Period booking'!$D$10="Entry LNG",INDEX(entryLNG,$F61,4))))))) -> 0.03870358
B62: 2027 | C62: March | D62: 2027March | F62: 3 | G62: 1 | H62: 31 | I62: =IF(G62<>G61,SUM(H62:H64),I61) -> 90 | K62: =IF('Period booking'!$D$10="Exit storage",INDEX(exitstorage,1,1),IF('Period booking'!$D$10="Exit non-storage",INDEX(exit,1,1),IF('Period booking'!$D$10="Entry storage",INDEX(entrystorage,1,1),IF('Period booking'!$D$10="Entry Regular",INDEX(entry,1,1),IF('Period booking'!$D$10="Entry LNG",INDEX(entryLNG,1,1)))))) -> 5.09303642 | L62: =IF('Period booking'!$D$10="Exit storage",INDEX(exitstorage,$G62,2),IF('Period booking'!$D$10="Exit non-storage",INDEX(exit,$G62,2),IF('Period booking'!$D$10="Entry storage",INDEX(entrystorage,$G62,2),IF('Period booking'!$D$10="Entry Regular",INDEX(entry,$G62,2),IF('Period booking'!$D$10="Entry LNG",INDEX(entryLNG,$G62,2)))))) -> 2.32640137 | M62: =IF('Period booking'!$D$10="Exit storage",INDEX(exitstorage,$F62,3),IF('Period booking'!$D$10="Exit non-storage",INDEX(exit,$F62,3),IF('Period booking'!$D$10="Entry storage",INDEX(entrystorage,$F62,3),IF('Period booking'!$D$10="Entry Regular",INDEX(entry,$F62,3),IF('Period booking'!$D$10="Entry LNG",INDEX(entryLNG,$F62,3)))))) -> 0.77795783 | N62: =IF('Period booking'!$D$10="Exit storage",INDEX(exitstorage,$F62,4),IF('Period booking'!$D$10="Exit non-storage",INDEX(exit,$F62,4),IF('Period booking'!$D$10="Entry storage",INDEX(entrystorage,$F62,4),IF('Period booking'!$D$10="Entry Regular",INDEX(entry,$F62,4),IF('Period booking'!$D$10="Entry non-storage",INDEX(entry,1,1),IF('Period booking'!$D$10="Entry LNG",INDEX(entryLNG,$F62,4))))))) -> 0.03025473
B63: 2027 | C63: April | D63: 2027April | F63: 4 | G63: 4 | H63: 30 | I63: 91 | K63: =IF('Period booking'!$D$10="Exit storage",INDEX(exitstorage,1,1),IF('Period booking'!$D$10="Exit non-storage",INDEX(exit,1,1),IF('Period booking'!$D$10="Entry storage",INDEX(entrystorage,1,1),IF('Period booking'!$D$10="Entry Regular",INDEX(entry,1,1),IF('Period booking'!$D$10="Entry LNG",INDEX(entryLNG,1,1)))))) -> 5.09303642 | L63: =IF('Period booking'!$D$10="Exit storage",INDEX(exitstorage,$G63,2),IF('Period booking'!$D$10="Exit non-storage",INDEX(exit,$G63,2),IF('Period booking'!$D$10="Entry storage",INDEX(entrystorage,$G63,2),IF('Period booking'!$D$10="Entry Regular",INDEX(entry,$G63,2),IF('Period booking'!$D$10="Entry LNG",INDEX(entryLNG,$G63,2)))))) -> 1.24437531 | M63: =IF('Period booking'!$D$10="Exit storage",INDEX(exitstorage,$F63,3),IF('Period booking'!$D$10="Exit non-storage",INDEX(exit,$F63,3),IF('Period booking'!$D$10="Entry storage",INDEX(entrystorage,$F63,3),IF('Period booking'!$D$10="Entry Regular",INDEX(entry,$F63,3),IF('Period booking'!$D$10="Entry LNG",INDEX(entryLNG,$F63,3)))))) -> 0.56135029 | N63: =IF('Period booking'!$D$10="Exit storage",INDEX(exitstorage,$F63,4),IF('Period booking'!$D$10="Exit non-storage",INDEX(exit,$F63,4),IF('Period booking'!$D$10="Entry storage",INDEX(entrystorage,$F63,4),IF('Period booking'!$D$10="Entry Regular",INDEX(entry,$F63,4),IF('Period booking'!$D$10="Entry non-storage",INDEX(entry,1,1),IF('Period booking'!$D$10="Entry LNG",INDEX(entryLNG,$F63,4))))))) -> 0.02256285
B64: 2027 | C64: May | D64: 2027May | F64: 5 | G64: 4 | H64: 31 | I64: 91 | K64: =IF('Period booking'!$D$10="Exit storage",INDEX(exitstorage,1,1),IF('Period booking'!$D$10="Exit non-storage",INDEX(exit,1,1),IF('Period booking'!$D$10="Entry storage",INDEX(entrystorage,1,1),IF('Period booking'!$D$10="Entry Regular",INDEX(entry,1,1),IF('Period booking'!$D$10="Entry LNG",INDEX(entryLNG,1,1)))))) -> 5.09303642 | L64: =IF('Period booking'!$D$10="Exit storage",INDEX(exitstorage,$G64,2),IF('Period booking'!$D$10="Exit non-storage",INDEX(exit,$G64,2),IF('Period booking'!$D$10="Entry storage",INDEX(entrystorage,$G64,2),IF('Period booking'!$D$10="Entry Regular",INDEX(entry,$G64,2),IF('Period booking'!$D$10="Entry LNG",INDEX(entryLNG,$G64,2)))))) -> 1.24437531 | M64: =IF('Period booking'!$D$10="Exit storage",INDEX(exitstorage,$F64,3),IF('Period booking'!$D$10="Exit non-storage",INDEX(exit,$F64,3),IF('Period booking'!$D$10="Entry storage",INDEX(entrystorage,$F64,3),IF('Period booking'!$D$10="Entry Regular",INDEX(entry,$F64,3),IF('Period booking'!$D$10="Entry LNG",INDEX(entryLNG,$F64,3)))))) -> 0.5138804 | N64: =IF('Period booking'!$D$10="Exit storage",INDEX(exitstorage,$F64,4),IF('Period booking'!$D$10="Exit non-storage",INDEX(exit,$F64,4),IF('Period booking'!$D$10="Entry storage",INDEX(entrystorage,$F64,4),IF('Period booking'!$D$10="Entry Regular",INDEX(entry,$F64,4),IF('Period booking'!$D$10="Entry non-storage",INDEX(entry,1,1),IF('Period booking'!$D$10="Entry LNG",INDEX(entryLNG,$F64,4))))))) -> 0.01999889
B65: 2027 | C65: June | D65: 2027June | F65: 6 | G65: 4 | H65: 30 | I65: 91 | K65: =IF('Period booking'!$D$10="Exit storage",INDEX(exitstorage,1,1),IF('Period booking'!$D$10="Exit non-storage",INDEX(exit,1,1),IF('Period booking'!$D$10="Entry storage",INDEX(entrystorage,1,1),IF('Period booking'!$D$10="Entry Regular",INDEX(entry,1,1),IF('Period booking'!$D$10="Entry LNG",INDEX(entryLNG,1,1)))))) -> 5.09303642 | L65: =IF('Period booking'!$D$10="Exit storage",INDEX(exitstorage,$G65,2),IF('Period booking'!$D$10="Exit non-storage",INDEX(exit,$G65,2),IF('Period booking'!$D$10="Entry storage",INDEX(entrystorage,$G65,2),IF('Period booking'!$D$10="Entry Regular",INDEX(entry,$G65,2),IF('Period booking'!$D$10="Entry LNG",INDEX(entryLNG,$G65,2)))))) -> 1.24437531 | M65: =IF('Period booking'!$D$10="Exit storage",INDEX(exitstorage,$F65,3),IF('Period booking'!$D$10="Exit non-storage",INDEX(exit,$F65,3),IF('Period booking'!$D$10="Entry storage",INDEX(entrystorage,$F65,3),IF('Period booking'!$D$10="Entry Regular",INDEX(entry,$F65,3),IF('Period booking'!$D$10="Entry LNG",INDEX(entryLNG,$F65,3)))))) -> 0.41755922 | N65: =IF('Period booking'!$D$10="Exit storage",INDEX(exitstorage,$F65,4),IF('Period booking'!$D$10="Exit non-storage",INDEX(exit,$F65,4),IF('Period booking'!$D$10="Entry storage",INDEX(entrystorage,$F65,4),IF('Period booking'!$D$10="Entry Regular",INDEX(entry,$F65,4),IF('Period booking'!$D$10="Entry non-storage",INDEX(entry,1,1),IF('Period booking'!$D$10="Entry LNG",INDEX(entryLNG,$F65,4))))))) -> 0.01680004
B66: 2027 | C66: July | D66: 2027July | F66: 7 | G66: 7 | H66: 31 | I66: 92 | K66: =IF('Period booking'!$D$10="Exit storage",INDEX(exitstorage,1,1),IF('Period booking'!$D$10="Exit non-storage",INDEX(exit,1,1),IF('Period booking'!$D$10="Entry storage",INDEX(entrystorage,1,1),IF('Period booking'!$D$10="Entry Regular",INDEX(entry,1,1),IF('Period booking'!$D$10="Entry LNG",INDEX(entryLNG,1,1)))))) -> 5.09303642 | L66: =IF('Period booking'!$D$10="Exit storage",INDEX(exitstorage,$G66,2),IF('Period booking'!$D$10="Exit non-storage",INDEX(exit,$G66,2),IF('Period booking'!$D$10="Entry storage",INDEX(entrystorage,$G66,2),IF('Period booking'!$D$10="Entry Regular",INDEX(entry,$G66,2),IF('Period booking'!$D$10="Entry LNG",INDEX(entryLNG,$G66,2)))))) -> 1.00932819 | M66: =IF('Period booking'!$D$10="Exit storage",INDEX(exitstorage,$F66,3),IF('Period booking'!$D$10="Exit non-storage",INDEX(exit,$F66,3),IF('Period booking'!$D$10="Entry storage",INDEX(entrystorage,$F66,3),IF('Period booking'!$D$10="Entry Regular",INDEX(entry,$F66,3),IF('Period booking'!$D$10="Entry LNG",INDEX(entryLNG,$F66,3)))))) -> 0.40747082 | N66: =IF('Period booking'!$D$10="Exit storage",INDEX(exitstorage,$F66,4),IF('Period booking'!$D$10="Exit non-storage",INDEX(exit,$F66,4),IF('Period booking'!$D$10="Entry storage",INDEX(entrystorage,$F66,4),IF('Period booking'!$D$10="Entry Regular",INDEX(entry,$F66,4),IF('Period booking'!$D$10="Entry non-storage",INDEX(entry,1,1),IF('Period booking'!$D$10="Entry LNG",INDEX(entryLNG,$F66,4))))))) -> 0.01584772
B67: 2027 | C67: August | D67: 2027August | F67: 8 | G67: 7 | H67: 31 | I67: 92 | K67: =IF('Period booking'!$D$10="Exit storage",INDEX(exitstorage,1,1),IF('Period booking'!$D$10="Exit non-storage",INDEX(exit,1,1),IF('Period booking'!$D$10="Entry storage",INDEX(entrystorage,1,1),IF('Period booking'!$D$10="Entry Regular",INDEX(entry,1,1),IF('Period booking'!$D$10="Entry LNG",INDEX(entryLNG,1,1)))))) -> 5.09303642 | L67: =IF('Period booking'!$D$10="Exit storage",INDEX(exitstorage,$G67,2),IF('Period booking'!$D$10="Exit non-storage",INDEX(exit,$G67,2),IF('Period booking'!$D$10="Entry storage",INDEX(entrystorage,$G67,2),IF('Period booking'!$D$10="Entry Regular",INDEX(entry,$G67,2),IF('Period booking'!$D$10="Entry LNG",INDEX(entryLNG,$G67,2)))))) -> 1.00932819 | M67: =IF('Period booking'!$D$10="Exit storage",INDEX(exitstorage,$F67,3),IF('Period booking'!$D$10="Exit non-storage",INDEX(exit,$F67,3),IF('Period booking'!$D$10="Entry storage",INDEX(entrystorage,$F67,3),IF('Period booking'!$D$10="Entry Regular",INDEX(entry,$F67,3),IF('Period booking'!$D$10="Entry LNG",INDEX(entryLNG,$F67,3)))))) -> 0.38735681 | N67: =IF('Period booking'!$D$10="Exit storage",INDEX(exitstorage,$F67,4),IF('Period booking'!$D$10="Exit non-storage",INDEX(exit,$F67,4),IF('Period booking'!$D$10="Entry storage",INDEX(entrystorage,$F67,4),IF('Period booking'!$D$10="Entry Regular",INDEX(entry,$F67,4),IF('Period booking'!$D$10="Entry non-storage",INDEX(entry,1,1),IF('Period booking'!$D$10="Entry LNG",INDEX(entryLNG,$F67,4))))))) -> 0.01509074
B68: 2027 | C68: September | D68: 2027September | F68: 9 | G68: 7 | H68: 30 | I68: 92 | K68: =IF('Period booking'!$D$10="Exit storage",INDEX(exitstorage,1,1),IF('Period booking'!$D$10="Exit non-storage",INDEX(exit,1,1),IF('Period booking'!$D$10="Entry storage",INDEX(entrystorage,1,1),IF('Period booking'!$D$10="Entry Regular",INDEX(entry,1,1),IF('Period booking'!$D$10="Entry LNG",INDEX(entryLNG,1,1)))))) -> 5.09303642 | L68: =IF('Period booking'!$D$10="Exit storage",INDEX(exitstorage,$G68,2),IF('Period booking'!$D$10="Exit non-storage",INDEX(exit,$G68,2),IF('Period booking'!$D$10="Entry storage",INDEX(entrystorage,$G68,2),IF('Period booking'!$D$10="Entry Regular",INDEX(entry,$G68,2),IF('Period booking'!$D$10="Entry LNG",INDEX(entryLNG,$G68,2)))))) -> 1.00932819 | M68: =IF('Period booking'!$D$10="Exit storage",INDEX(exitstorage,$F68,3),IF('Period booking'!$D$10="Exit non-storage",INDEX(exit,$F68,3),IF('Period booking'!$D$10="Entry storage",INDEX(entrystorage,$F68,3),IF('Period booking'!$D$10="Entry Regular",INDEX(entry,$F68,3),IF('Period booking'!$D$10="Entry LNG",INDEX(entryLNG,$F68,3)))))) -> 0.4163034 | N68: =IF('Period booking'!$D$10="Exit storage",INDEX(exitstorage,$F68,4),IF('Period booking'!$D$10="Exit non-storage",INDEX(exit,$F68,4),IF('Period booking'!$D$10="Entry storage",INDEX(entrystorage,$F68,4),IF('Period booking'!$D$10="Entry Regular",INDEX(entry,$F68,4),IF('Period booking'!$D$10="Entry non-storage",INDEX(entry,1,1),IF('Period booking'!$D$10="Entry LNG",INDEX(entryLNG,$F68,4))))))) -> 0.01675121
B69: 2027 | C69: October | D69: 2027October | F69: 10 | G69: 10 | H69: 31 | I69: 92 | K69: =IF('Period booking'!$D$10="Exit storage",INDEX(exitstorage,1,1),IF('Period booking'!$D$10="Exit non-storage",INDEX(exit,1,1),IF('Period booking'!$D$10="Entry storage",INDEX(entrystorage,1,1),IF('Period booking'!$D$10="Entry Regular",INDEX(entry,1,1),IF('Period booking'!$D$10="Entry LNG",INDEX(entryLNG,1,1)))))) -> 5.09303642 | L69: =IF('Period booking'!$D$10="Exit storage",INDEX(exitstorage,$G69,2),IF('Period booking'!$D$10="Exit non-storage",INDEX(exit,$G69,2),IF('Period booking'!$D$10="Entry storage",INDEX(entrystorage,$G69,2),IF('Period booking'!$D$10="Entry Regular",INDEX(entry,$G69,2),IF('Period booking'!$D$10="Entry LNG",INDEX(entryLNG,$G69,2)))))) -> 1.77314412 | M69: =IF('Period booking'!$D$10="Exit storage",INDEX(exitstorage,$F69,3),IF('Period booking'!$D$10="Exit non-storage",INDEX(exit,$F69,3),IF('Period booking'!$D$10="Entry storage",INDEX(entrystorage,$F69,3),IF('Period booking'!$D$10="Entry Regular",INDEX(entry,$F69,3),IF('Period booking'!$D$10="Entry LNG",INDEX(entryLNG,$F69,3)))))) -> 0.49376639 | N69: =IF('Period booking'!$D$10="Exit storage",INDEX(exitstorage,$F69,4),IF('Period booking'!$D$10="Exit non-storage",INDEX(exit,$F69,4),IF('Period booking'!$D$10="Entry storage",INDEX(entrystorage,$F69,4),IF('Period booking'!$D$10="Entry Regular",INDEX(entry,$F69,4),IF('Period booking'!$D$10="Entry non-storage",INDEX(entry,1,1),IF('Period booking'!$D$10="Entry LNG",INDEX(entryLNG,$F69,4))))))) -> 0.01921749
B70: 2027 | C70: November | D70: 2027November | F70: 11 | G70: 10 | H70: 30 | I70: 92 | K70: =IF('Period booking'!$D$10="Exit storage",INDEX(exitstorage,1,1),IF('Period booking'!$D$10="Exit non-storage",INDEX(exit,1,1),IF('Period booking'!$D$10="Entry storage",INDEX(entrystorage,1,1),IF('Period booking'!$D$10="Entry Regular",INDEX(entry,1,1),IF('Period booking'!$D$10="Entry LNG",INDEX(entryLNG,1,1)))))) -> 5.09303642 | L70: =IF('Period booking'!$D$10="Exit storage",INDEX(exitstorage,$G70,2),IF('Period booking'!$D$10="Exit non-storage",INDEX(exit,$G70,2),IF('Period booking'!$D$10="Entry storage",INDEX(entrystorage,$G70,2),IF('Period booking'!$D$10="Entry Regular",INDEX(entry,$G70,2),IF('Period booking'!$D$10="Entry LNG",INDEX(entryLNG,$G70,2)))))) -> 1.77314412 | M70: =IF('Period booking'!$D$10="Exit storage",INDEX(exitstorage,$F70,3),IF('Period booking'!$D$10="Exit non-storage",INDEX(exit,$F70,3),IF('Period booking'!$D$10="Entry storage",INDEX(entrystorage,$F70,3),IF('Period booking'!$D$10="Entry Regular",INDEX(entry,$F70,3),IF('Period booking'!$D$10="Entry LNG",INDEX(entryLNG,$F70,3)))))) -> 0.70953672 | N70: =IF('Period booking'!$D$10="Exit storage",INDEX(exitstorage,$F70,4),IF('Period booking'!$D$10="Exit non-storage",INDEX(exit,$F70,4),IF('Period booking'!$D$10="Entry storage",INDEX(entrystorage,$F70,4),IF('Period booking'!$D$10="Entry Regular",INDEX(entry,$F70,4),IF('Period booking'!$D$10="Entry non-storage",INDEX(entry,1,1),IF('Period booking'!$D$10="Entry LNG",INDEX(entryLNG,$F70,4))))))) -> 0.028521
B71: 2027 | C71: December | D71: 2027December | F71: 12 | G71: 10 | H71: 31 | I71: 92 | K71: =IF('Period booking'!$D$10="Exit storage",INDEX(exitstorage,1,1),IF('Period booking'!$D$10="Exit non-storage",INDEX(exit,1,1),IF('Period booking'!$D$10="Entry storage",INDEX(entrystorage,1,1),IF('Period booking'!$D$10="Entry Regular",INDEX(entry,1,1),IF('Period booking'!$D$10="Entry LNG",INDEX(entryLNG,1,1)))))) -> 5.09303642 | L71: =IF('Period booking'!$D$10="Exit storage",INDEX(exitstorage,$G71,2),IF('Period booking'!$D$10="Exit non-storage",INDEX(exit,$G71,2),IF('Period booking'!$D$10="Entry storage",INDEX(entrystorage,$G71,2),IF('Period booking'!$D$10="Entry Regular",INDEX(entry,$G71,2),IF('Period booking'!$D$10="Entry LNG",INDEX(entryLNG,$G71,2)))))) -> 1.77314412 | M71: =IF('Period booking'!$D$10="Exit storage",INDEX(exitstorage,$F71,3),IF('Period booking'!$D$10="Exit non-storage",INDEX(exit,$F71,3),IF('Period booking'!$D$10="Entry storage",INDEX(entrystorage,$F71,3),IF('Period booking'!$D$10="Entry Regular",INDEX(entry,$F71,3),IF('Period booking'!$D$10="Entry LNG",INDEX(entryLNG,$F71,3)))))) -> 0.92394658 | N71: =IF('Period booking'!$D$10="Exit storage",INDEX(exitstorage,$F71,4),IF('Period booking'!$D$10="Exit non-storage",INDEX(exit,$F71,4),IF('Period booking'!$D$10="Entry storage",INDEX(entrystorage,$F71,4),IF('Period booking'!$D$10="Entry Regular",INDEX(entry,$F71,4),IF('Period booking'!$D$10="Entry non-storage",INDEX(entry,1,1),IF('Period booking'!$D$10="Entry LNG",INDEX(entryLNG,$F71,4))))))) -> 0.03594428
B72: =YEAR(L$8+366) -> 2028 | C72: January | D72: 2028January | F72: 1 | G72: 1 | H72: 31 | I72: 91 | K72: =IF('Period booking'!$D$10="Exit storage",INDEX(exitstorage,1,1),IF('Period booking'!$D$10="Exit non-storage",INDEX(exit,1,1),IF('Period booking'!$D$10="Entry storage",INDEX(entrystorage,1,1),IF('Period booking'!$D$10="Entry Regular",INDEX(entry,1,1),IF('Period booking'!$D$10="Entry LNG",INDEX(entryLNG,1,1)))))) -> 5.09303642 | L72: =IF('Period booking'!$D$10="Exit storage",INDEX(exitstorage,$G72,2),IF('Period booking'!$D$10="Exit non-storage",INDEX(exit,$G72,2),IF('Period booking'!$D$10="Entry storage",INDEX(entrystorage,$G72,2),IF('Period booking'!$D$10="Entry Regular",INDEX(entry,$G72,2),IF('Period booking'!$D$10="Entry LNG",INDEX(entryLNG,$G72,2)))))) -> 2.32640137 | M72: =IF('Period booking'!$D$10="Exit storage",INDEX(exitstorage,$F72,3),IF('Period booking'!$D$10="Exit non-storage",INDEX(exit,$F72,3),IF('Period booking'!$D$10="Entry storage",INDEX(entrystorage,$F72,3),IF('Period booking'!$D$10="Entry Regular",INDEX(entry,$F72,3),IF('Period booking'!$D$10="Entry LNG",INDEX(entryLNG,$F72,3)))))) -> 1.11275869 | N72: =IF('Period booking'!$D$10="Exit storage",INDEX(exitstorage,$F72,4),IF('Period booking'!$D$10="Exit non-storage",INDEX(exit,$F72,4),IF('Period booking'!$D$10="Entry storage",INDEX(entrystorage,$F72,4),IF('Period booking'!$D$10="Entry Regular",INDEX(entry,$F72,4),IF('Period booking'!$D$10="Entry non-storage",INDEX(entry,1,1),IF('Period booking'!$D$10="Entry LNG",INDEX(entryLNG,$F72,4))))))) -> 0.0432943
B73: 2028 | C73: February | D73: 2028February | F73: 2 | G73: 1 | H73: 29 | I73: 91 | K73: =IF('Period booking'!$D$10="Exit storage",INDEX(exitstorage,1,1),IF('Period booking'!$D$10="Exit non-storage",INDEX(exit,1,1),IF('Period booking'!$D$10="Entry storage",INDEX(entrystorage,1,1),IF('Period booking'!$D$10="Entry Regular",INDEX(entry,1,1),IF('Period booking'!$D$10="Entry LNG",INDEX(entryLNG,1,1)))))) -> 5.09303642 | L73: =IF('Period booking'!$D$10="Exit storage",INDEX(exitstorage,$G73,2),IF('Period booking'!$D$10="Exit non-storage",INDEX(exit,$G73,2),IF('Period booking'!$D$10="Entry storage",INDEX(entrystorage,$G73,2),IF('Period booking'!$D$10="Entry Regular",INDEX(entry,$G73,2),IF('Period booking'!$D$10="Entry LNG",INDEX(entryLNG,$G73,2)))))) -> 2.32640137 | M73: =IF('Period booking'!$D$10="Exit storage",INDEX(exitstorage,$F73,3),IF('Period booking'!$D$10="Exit non-storage",INDEX(exit,$F73,3),IF('Period booking'!$D$10="Entry storage",INDEX(entrystorage,$F73,3),IF('Period booking'!$D$10="Entry Regular",INDEX(entry,$F73,3),IF('Period booking'!$D$10="Entry LNG",INDEX(entryLNG,$F73,3)))))) -> 0.89841163 | N73: =IF('Period booking'!$D$10="Exit storage",INDEX(exitstorage,$F73,4),IF('Period booking'!$D$10="Exit non-storage",INDEX(exit,$F73,4),IF('Period booking'!$D$10="Entry storage",INDEX(entrystorage,$F73,4),IF('Period booking'!$D$10="Entry Regular",INDEX(entry,$F73,4),IF('Period booking'!$D$10="Entry non-storage",INDEX(entry,1,1),IF('Period booking'!$D$10="Entry LNG",INDEX(entryLNG,$F73,4))))))) -> 0.03870358
B74: 2028 | C74: March | D74: 2028March | F74: 3 | G74: 1 | H74: 31 | I74: 91 | K74: =IF('Period booking'!$D$10="Exit storage",INDEX(exitstorage,1,1),IF('Period booking'!$D$10="Exit non-storage",INDEX(exit,1,1),IF('Period booking'!$D$10="Entry storage",INDEX(entrystorage,1,1),IF('Period booking'!$D$10="Entry Regular",INDEX(entry,1,1),IF('Period booking'!$D$10="Entry LNG",INDEX(entryLNG,1,1)))))) -> 5.09303642 | L74: =IF('Period booking'!$D$10="Exit storage",INDEX(exitstorage,$G74,2),IF('Period booking'!$D$10="Exit non-storage",INDEX(exit,$G74,2),IF('Period booking'!$D$10="Entry storage",INDEX(entrystorage,$G74,2),IF('Period booking'!$D$10="Entry Regular",INDEX(entry,$G74,2),IF('Period booking'!$D$10="Entry LNG",INDEX(entryLNG,$G74,2)))))) -> 2.32640137 | M74: =IF('Period booking'!$D$10="Exit storage",INDEX(exitstorage,$F74,3),IF('Period booking'!$D$10="Exit non-storage",INDEX(exit,$F74,3),IF('Period booking'!$D$10="Entry storage",INDEX(entrystorage,$F74,3),IF('Period booking'!$D$10="Entry Regular",INDEX(entry,$F74,3),IF('Period booking'!$D$10="Entry LNG",INDEX(entryLNG,$F74,3)))))) -> 0.77795783 | N74: =IF('Period booking'!$D$10="Exit storage",INDEX(exitstorage,$F74,4),IF('Period booking'!$D$10="Exit non-storage",INDEX(exit,$F74,4),IF('Period booking'!$D$10="Entry storage",INDEX(entrystorage,$F74,4),IF('Period booking'!$D$10="Entry Regular",INDEX(entry,$F74,4),IF('Period booking'!$D$10="Entry non-storage",INDEX(entry,1,1),IF('Period booking'!$D$10="Entry LNG",INDEX(entryLNG,$F74,4))))))) -> 0.03025473
B75: 2028 | C75: April | D75: 2028April | F75: 4 | G75: 4 | H75: 30 | I75: 91 | K75: =IF('Period booking'!$D$10="Exit storage",INDEX(exitstorage,1,1),IF('Period booking'!$D$10="Exit non-storage",INDEX(exit,1,1),IF('Period booking'!$D$10="Entry storage",INDEX(entrystorage,1,1),IF('Period booking'!$D$10="Entry Regular",INDEX(entry,1,1),IF('Period booking'!$D$10="Entry LNG",INDEX(entryLNG,1,1)))))) -> 5.09303642 | L75: =IF('Period booking'!$D$10="Exit storage",INDEX(exitstorage,$G75,2),IF('Period booking'!$D$10="Exit non-storage",INDEX(exit,$G75,2),IF('Period booking'!$D$10="Entry storage",INDEX(entrystorage,$G75,2),IF('Period booking'!$D$10="Entry Regular",INDEX(entry,$G75,2),IF('Period booking'!$D$10="Entry LNG",INDEX(entryLNG,$G75,2)))))) -> 1.24437531 | M75: =IF('Period booking'!$D$10="Exit storage",INDEX(exitstorage,$F75,3),IF('Period booking'!$D$10="Exit non-storage",INDEX(exit,$F75,3),IF('Period booking'!$D$10="Entry storage",INDEX(entrystorage,$F75,3),IF('Period booking'!$D$10="Entry Regular",INDEX(entry,$F75,3),IF('Period booking'!$D$10="Entry LNG",INDEX(entryLNG,$F75,3)))))) -> 0.56135029 | N75: =IF('Period booking'!$D$10="Exit storage",INDEX(exitstorage,$F75,4),IF('Period booking'!$D$10="Exit non-storage",INDEX(exit,$F75,4),IF('Period booking'!$D$10="Entry storage",INDEX(entrystorage,$F75,4),IF('Period booking'!$D$10="Entry Regular",INDEX(entry,$F75,4),IF('Period booking'!$D$10="Entry non-storage",INDEX(entry,1,1),IF('Period booking'!$D$10="Entry LNG",INDEX(entryLNG,$F75,4))))))) -> 0.02256285
B76: 2028 | C76: May | D76: 2028May | F76: 5 | G76: 4 | H76: 31 | I76: 91 | K76: =IF('Period booking'!$D$10="Exit storage",INDEX(exitstorage,1,1),IF('Period booking'!$D$10="Exit non-storage",INDEX(exit,1,1),IF('Period booking'!$D$10="Entry storage",INDEX(entrystorage,1,1),IF('Period booking'!$D$10="Entry Regular",INDEX(entry,1,1),IF('Period booking'!$D$10="Entry LNG",INDEX(entryLNG,1,1)))))) -> 5.09303642 | L76: =IF('Period booking'!$D$10="Exit storage",INDEX(exitstorage,$G76,2),IF('Period booking'!$D$10="Exit non-storage",INDEX(exit,$G76,2),IF('Period booking'!$D$10="Entry storage",INDEX(entrystorage,$G76,2),IF('Period booking'!$D$10="Entry Regular",INDEX(entry,$G76,2),IF('Period booking'!$D$10="Entry LNG",INDEX(entryLNG,$G76,2)))))) -> 1.24437531 | M76: =IF('Period booking'!$D$10="Exit storage",INDEX(exitstorage,$F76,3),IF('Period booking'!$D$10="Exit non-storage",INDEX(exit,$F76,3),IF('Period booking'!$D$10="Entry storage",INDEX(entrystorage,$F76,3),IF('Period booking'!$D$10="Entry Regular",INDEX(entry,$F76,3),IF('Period booking'!$D$10="Entry LNG",INDEX(entryLNG,$F76,3)))))) -> 0.5138804 | N76: =IF('Period booking'!$D$10="Exit storage",INDEX(exitstorage,$F76,4),IF('Period booking'!$D$10="Exit non-storage",INDEX(exit,$F76,4),IF('Period booking'!$D$10="Entry storage",INDEX(entrystorage,$F76,4),IF('Period booking'!$D$10="Entry Regular",INDEX(entry,$F76,4),IF('Period booking'!$D$10="Entry non-storage",INDEX(entry,1,1),IF('Period booking'!$D$10="Entry LNG",INDEX(entryLNG,$F76,4))))))) -> 0.01999889
B77: 2028 | C77: June | D77: 2028June | F77: 6 | G77: 4 | H77: 30 | I77: 91 | K77: =IF('Period booking'!$D$10="Exit storage",INDEX(exitstorage,1,1),IF('Period booking'!$D$10="Exit non-storage",INDEX(exit,1,1),IF('Period booking'!$D$10="Entry storage",INDEX(entrystorage,1,1),IF('Period booking'!$D$10="Entry Regular",INDEX(entry,1,1),IF('Period booking'!$D$10="Entry LNG",INDEX(entryLNG,1,1)))))) -> 5.09303642 | L77: =IF('Period booking'!$D$10="Exit storage",INDEX(exitstorage,$G77,2),IF('Period booking'!$D$10="Exit non-storage",INDEX(exit,$G77,2),IF('Period booking'!$D$10="Entry storage",INDEX(entrystorage,$G77,2),IF('Period booking'!$D$10="Entry Regular",INDEX(entry,$G77,2),IF('Period booking'!$D$10="Entry LNG",INDEX(entryLNG,$G77,2)))))) -> 1.24437531 | M77: =IF('Period booking'!$D$10="Exit storage",INDEX(exitstorage,$F77,3),IF('Period booking'!$D$10="Exit non-storage",INDEX(exit,$F77,3),IF('Period booking'!$D$10="Entry storage",INDEX(entrystorage,$F77,3),IF('Period booking'!$D$10="Entry Regular",INDEX(entry,$F77,3),IF('Period booking'!$D$10="Entry LNG",INDEX(entryLNG,$F77,3)))))) -> 0.41755922 | N77: =IF('Period booking'!$D$10="Exit storage",INDEX(exitstorage,$F77,4),IF('Period booking'!$D$10="Exit non-storage",INDEX(exit,$F77,4),IF('Period booking'!$D$10="Entry storage",INDEX(entrystorage,$F77,4),IF('Period booking'!$D$10="Entry Regular",INDEX(entry,$F77,4),IF('Period booking'!$D$10="Entry non-storage",INDEX(entry,1,1),IF('Period booking'!$D$10="Entry LNG",INDEX(entryLNG,$F77,4))))))) -> 0.01680004
B78: 2028 | C78: July | D78: 2028July | F78: 7 | G78: 7 | H78: 31 | I78: 92 | K78: =IF('Period booking'!$D$10="Exit storage",INDEX(exitstorage,1,1),IF('Period booking'!$D$10="Exit non-storage",INDEX(exit,1,1),IF('Period booking'!$D$10="Entry storage",INDEX(entrystorage,1,1),IF('Period booking'!$D$10="Entry Regular",INDEX(entry,1,1),IF('Period booking'!$D$10="Entry LNG",INDEX(entryLNG,1,1)))))) -> 5.09303642 | L78: =IF('Period booking'!$D$10="Exit storage",INDEX(exitstorage,$G78,2),IF('Period booking'!$D$10="Exit non-storage",INDEX(exit,$G78,2),IF('Period booking'!$D$10="Entry storage",INDEX(entrystorage,$G78,2),IF('Period booking'!$D$10="Entry Regular",INDEX(entry,$G78,2),IF('Period booking'!$D$10="Entry LNG",INDEX(entryLNG,$G78,2)))))) -> 1.00932819 | M78: =IF('Period booking'!$D$10="Exit storage",INDEX(exitstorage,$F78,3),IF('Period booking'!$D$10="Exit non-storage",INDEX(exit,$F78,3),IF('Period booking'!$D$10="Entry storage",INDEX(entrystorage,$F78,3),IF('Period booking'!$D$10="Entry Regular",INDEX(entry,$F78,3),IF('Period booking'!$D$10="Entry LNG",INDEX(entryLNG,$F78,3)))))) -> 0.40747082 | N78: =IF('Period booking'!$D$10="Exit storage",INDEX(exitstorage,$F78,4),IF('Period booking'!$D$10="Exit non-storage",INDEX(exit,$F78,4),IF('Period booking'!$D$10="Entry storage",INDEX(entrystorage,$F78,4),IF('Period booking'!$D$10="Entry Regular",INDEX(entry,$F78,4),IF('Period booking'!$D$10="Entry non-storage",INDEX(entry,1,1),IF('Period booking'!$D$10="Entry LNG",INDEX(entryLNG,$F78,4))))))) -> 0.01584772
B79: 2028 | C79: August | D79: 2028August | F79: 8 | G79: 7 | H79: 31 | I79: 92 | K79: =IF('Period booking'!$D$10="Exit storage",INDEX(exitstorage,1,1),IF('Period booking'!$D$10="Exit non-storage",INDEX(exit,1,1),IF('Period booking'!$D$10="Entry storage",INDEX(entrystorage,1,1),IF('Period booking'!$D$10="Entry Regular",INDEX(entry,1,1),IF('Period booking'!$D$10="Entry LNG",INDEX(entryLNG,1,1)))))) -> 5.09303642 | L79: =IF('Period booking'!$D$10="Exit storage",INDEX(exitstorage,$G79,2),IF('Period booking'!$D$10="Exit non-storage",INDEX(exit,$G79,2),IF('Period booking'!$D$10="Entry storage",INDEX(entrystorage,$G79,2),IF('Period booking'!$D$10="Entry Regular",INDEX(entry,$G79,2),IF('Period booking'!$D$10="Entry LNG",INDEX(entryLNG,$G79,2)))))) -> 1.00932819 | M79: =IF('Period booking'!$D$10="Exit storage",INDEX(exitstorage,$F79,3),IF('Period booking'!$D$10="Exit non-storage",INDEX(exit,$F79,3),IF('Period booking'!$D$10="Entry storage",INDEX(entrystorage,$F79,3),IF('Period booking'!$D$10="Entry Regular",INDEX(entry,$F79,3),IF('Period booking'!$D$10="Entry LNG",INDEX(entryLNG,$F79,3)))))) -> 0.38735681 | N79: =IF('Period booking'!$D$10="Exit storage",INDEX(exitstorage,$F79,4),IF('Period booking'!$D$10="Exit non-storage",INDEX(exit,$F79,4),IF('Period booking'!$D$10="Entry storage",INDEX(entrystorage,$F79,4),IF('Period booking'!$D$10="Entry Regular",INDEX(entry,$F79,4),IF('Period booking'!$D$10="Entry non-storage",INDEX(entry,1,1),IF('Period booking'!$D$10="Entry LNG",INDEX(entryLNG,$F79,4))))))) -> 0.01509074
B80: 2028 | C80: September | D80: 2028September | F80: 9 | G80: 7 | H80: 30 | I80: 92 | K80: =IF('Period booking'!$D$10="Exit storage",INDEX(exitstorage,1,1),IF('Period booking'!$D$10="Exit non-storage",INDEX(exit,1,1),IF('Period booking'!$D$10="Entry storage",INDEX(entrystorage,1,1),IF('Period booking'!$D$10="Entry Regular",INDEX(entry,1,1),IF('Period booking'!$D$10="Entry LNG",INDEX(entryLNG,1,1)))))) -> 5.09303642 | L80: =IF('Period booking'!$D$10="Exit storage",INDEX(exitstorage,$G80,2),IF('Period booking'!$D$10="Exit non-storage",INDEX(exit,$G80,2),IF('Period booking'!$D$10="Entry storage",INDEX(entrystorage,$G80,2),IF('Period booking'!$D$10="Entry Regular",INDEX(entry,$G80,2),IF('Period booking'!$D$10="Entry LNG",INDEX(entryLNG,$G80,2)))))) -> 1.00932819 | M80: =IF('Period booking'!$D$10="Exit storage",INDEX(exitstorage,$F80,3),IF('Period booking'!$D$10="Exit non-storage",INDEX(exit,$F80,3),IF('Period booking'!$D$10="Entry storage",INDEX(entrystorage,$F80,3),IF('Period booking'!$D$10="Entry Regular",INDEX(entry,$F80,3),IF('Period booking'!$D$10="Entry LNG",INDEX(entryLNG,$F80,3)))))) -> 0.4163034 | N80: =IF('Period booking'!$D$10="Exit storage",INDEX(exitstorage,$F80,4),IF('Period booking'!$D$10="Exit non-storage",INDEX(exit,$F80,4),IF('Period booking'!$D$10="Entry storage",INDEX(entrystorage,$F80,4),IF('Period booking'!$D$10="Entry Regular",INDEX(entry,$F80,4),IF('Period booking'!$D$10="Entry non-storage",INDEX(entry,1,1),IF('Period booking'!$D$10="Entry LNG",INDEX(entryLNG,$F80,4))))))) -> 0.01675121
B81: 2028 | C81: October | D81: 2028October | F81: 10 | G81: 10 | H81: 31 | I81: 92 | K81: =IF('Period booking'!$D$10="Exit storage",INDEX(exitstorage,1,1),IF('Period booking'!$D$10="Exit non-storage",INDEX(exit,1,1),IF('Period booking'!$D$10="Entry storage",INDEX(entrystorage,1,1),IF('Period booking'!$D$10="Entry Regular",INDEX(entry,1,1),IF('Period booking'!$D$10="Entry LNG",INDEX(entryLNG,1,1)))))) -> 5.09303642 | L81: =IF('Period booking'!$D$10="Exit storage",INDEX(exitstorage,$G81,2),IF('Period booking'!$D$10="Exit non-storage",INDEX(exit,$G81,2),IF('Period booking'!$D$10="Entry storage",INDEX(entrystorage,$G81,2),IF('Period booking'!$D$10="Entry Regular",INDEX(entry,$G81,2),IF('Period booking'!$D$10="Entry LNG",INDEX(entryLNG,$G81,2)))))) -> 1.77314412 | M81: =IF('Period booking'!$D$10="Exit storage",INDEX(exitstorage,$F81,3),IF('Period booking'!$D$10="Exit non-storage",INDEX(exit,$F81,3),IF('Period booking'!$D$10="Entry storage",INDEX(entrystorage,$F81,3),IF('Period booking'!$D$10="Entry Regular",INDEX(entry,$F81,3),IF('Period booking'!$D$10="Entry LNG",INDEX(entryLNG,$F81,3)))))) -> 0.49376639 | N81: =IF('Period booking'!$D$10="Exit storage",INDEX(exitstorage,$F81,4),IF('Period booking'!$D$10="Exit non-storage",INDEX(exit,$F81,4),IF('Period booking'!$D$10="Entry storage",INDEX(entrystorage,$F81,4),IF('Period booking'!$D$10="Entry Regular",INDEX(entry,$F81,4),IF('Period booking'!$D$10="Entry non-storage",INDEX(entry,1,1),IF('Period booking'!$D$10="Entry LNG",INDEX(entryLNG,$F81,4))))))) -> 0.01921749
B82: 2028 | C82: November | D82: 2028November | F82: 11 | G82: 10 | H82: 30 | I82: =IF(G82<>G81,SUM(F84:F84),I81) -> 92 | K82: =IF('Period booking'!$D$10="Exit storage",INDEX(exitstorage,1,1),IF('Period booking'!$D$10="Exit non-storage",INDEX(exit,1,1),IF('Period booking'!$D$10="Entry storage",INDEX(entrystorage,1,1),IF('Period booking'!$D$10="Entry Regular",INDEX(entry,1,1),IF('Period booking'!$D$10="Entry LNG",INDEX(entryLNG,1,1)))))) -> 5.09303642 | L82: =IF('Period booking'!$D$10="Exit storage",INDEX(exitstorage,$G82,2),IF('Period booking'!$D$10="Exit non-storage",INDEX(exit,$G82,2),IF('Period booking'!$D$10="Entry storage",INDEX(entrystorage,$G82,2),IF('Period booking'!$D$10="Entry Regular",INDEX(entry,$G82,2),IF('Period booking'!$D$10="Entry LNG",INDEX(entryLNG,$G82,2)))))) -> 1.77314412 | M82: =IF('Period booking'!$D$10="Exit storage",INDEX(exitstorage,$F82,3),IF('Period booking'!$D$10="Exit non-storage",INDEX(exit,$F82,3),IF('Period booking'!$D$10="Entry storage",INDEX(entrystorage,$F82,3),IF('Period booking'!$D$10="Entry Regular",INDEX(entry,$F82,3),IF('Period booking'!$D$10="Entry LNG",INDEX(entryLNG,$F82,3)))))) -> 0.70953672 | N82: =IF('Period booking'!$D$10="Exit storage",INDEX(exitstorage,$F82,4),IF('Period booking'!$D$10="Exit non-storage",INDEX(exit,$F82,4),IF('Period booking'!$D$10="Entry storage",INDEX(entrystorage,$F82,4),IF('Period booking'!$D$10="Entry Regular",INDEX(entry,$F82,4),IF('Period booking'!$D$10="Entry non-storage",INDEX(entry,1,1),IF('Period booking'!$D$10="Entry LNG",INDEX(entryLNG,$F82,4))))))) -> 0.028521
B83: 2028 | C83: December | D83: 2028December | F83: 12 | G83: 10 | H83: 31 | I83: =IF(G83<>G82,SUM(F84:F85),I82) -> 92 | K83: =IF('Period booking'!$D$10="Exit storage",INDEX(exitstorage,1,1),IF('Period booking'!$D$10="Exit non-storage",INDEX(exit,1,1),IF('Period booking'!$D$10="Entry storage",INDEX(entrystorage,1,1),IF('Period booking'!$D$10="Entry Regular",INDEX(entry,1,1),IF('Period booking'!$D$10="Entry LNG",INDEX(entryLNG,1,1)))))) -> 5.09303642 | L83: =IF('Period booking'!$D$10="Exit storage",INDEX(exitstorage,$G83,2),IF('Period booking'!$D$10="Exit non-storage",INDEX(exit,$G83,2),IF('Period booking'!$D$10="Entry storage",INDEX(entrystorage,$G83,2),IF('Period booking'!$D$10="Entry Regular",INDEX(entry,$G83,2),IF('Period booking'!$D$10="Entry LNG",INDEX(entryLNG,$G83,2)))))) -> 1.77314412 | M83: =IF('Period booking'!$D$10="Exit storage",INDEX(exitstorage,$F83,3),IF('Period booking'!$D$10="Exit non-storage",INDEX(exit,$F83,3),IF('Period booking'!$D$10="Entry storage",INDEX(entrystorage,$F83,3),IF('Period booking'!$D$10="Entry Regular",INDEX(entry,$F83,3),IF('Period booking'!$D$10="Entry LNG",INDEX(entryLNG,$F83,3)))))) -> 0.92394658 | N83: =IF('Period booking'!$D$10="Exit storage",INDEX(exitstorage,$F83,4),IF('Period booking'!$D$10="Exit non-storage",INDEX(exit,$F83,4),IF('Period booking'!$D$10="Entry storage",INDEX(entrystorage,$F83,4),IF('Period booking'!$D$10="Entry Regular",INDEX(entry,$F83,4),IF('Period booking'!$D$10="Entry non-storage",INDEX(entry,1,1),IF('Period booking'!$D$10="Entry LNG",INDEX(entryLNG,$F83,4))))))) -> 0.03594428

Sheet Multipliers and SF (hidden)
B4: MULTIPLIERS AND SEASONAL FACTORS
B6: Multipliers (M)
B8: Quarterly multiplier | C8: M-Q | D8: 1.25
B9: Monthly multiplier | C9: M-M | D9: 1.5
B10: Daily multiplier | C10: M-DA | D10: 1.75
B11: Within-day multiplier | C11: M-WID | D11: 1.75
B13: Seasonal factors (SF) | D13: Month | E13: Day | F13: WID
B15: SF - Jan | D15: 1.715 | E15: 1.773 | F15: 1.773
B16: SF - Feb | D16: 1.533 | E16: 1.585 | F16: 1.585
B17: SF - March | D17: 1.199 | E17: 1.239 | F17: 1.239
B18: SF - April | D18: 0.894 | E18: 0.924 | F18: 0.924
B19: SF - May | D19: 0.792 | E19: 0.819 | F19: 0.819
B20: SF - June | D20: 0.665 | E20: 0.688 | F20: 0.688
B21: SF - July | D21: 0.628 | E21: 0.649 | F21: 0.649
B22: SF - August | D22: 0.597 | E22: 0.618 | F22: 0.618
B23: SF - Sept | D23: 0.663 | E23: 0.686 | F23: 0.686
B24: SF - Oct | D24: 0.761 | E24: 0.787 | F24: 0.787
B25: SF - Nov | D25: 1.130 | E25: 1.168 | F25: 1.168
B26: SF - Dec | D26: 1.424 | E26: 1.472 | F26: 1.472
B28: SF - Jan - March | D28: 1.482
B29: SF - April - June | D29: 0.784
B30: SF - July - Sept | D30: 0.629
B31: SF - Oct - Dec | D31: 1.105

Sheet Validation (hidden)
B4: VALIDATION POSTAGE STAMP POINTS
C6: Entry Regular
C7: Entry Storage
C8: Entry LNG
C9: Exit non-storage
C10: Exit storage
B12: VALIDATION FEBRUARY IN LEAP YEAR
C14: Yes
C15: No
